Cogmind - Beta 17.1 @@@ ROGUE MODE // 2026.09.19 @ 15:10:28 Player: MolePlayingNice Result: Destroyed by P-80 Master with Gamma Rifle Performance ------------- Evolutions (9) 4500 Regions Visited (21) 4200 Robots Destroyed (989) 4945 Value Destroyed (72996) 72996 Prototype IDs (177) 3540 Alien Tech Used (9) 1800 Bonus (113220) 113220 TOTAL SCORE: 205201 Bonus ------- Triggered High Security 500 High Alert Combat Kills 55737 Follower Combat Kills 2553 Prayed to X0-1V1 5000 Major X0-1V1 Interference 16000 Registered with UFD 300 Met Optimus in HQ 500 Met Warlord at Base 500 MAIN.C Attacked Warlord 500 Warlord Defense Kills 1352 Met R17 at Cetus 500 Found Hidden Lab 3000 Met R17 at Research 2000 Scanned by Researcher 500 Destroyed Superfortress 15000 Met Optimus at Protoforge 1000 Executed Drillbomb Mission 10000 Friendly Fire -1722 Cogmind --------- Core Integrity 0/1200 Matter 40/1300 Energy 99/100 System Corruption 56% Temperature Cool (0) Movement Core (50) Location -1/Access Parts ------- > --- POWER (3) -------- (None) > --- PROPULSION (6) --- (None) > --- UTILITY (8) ------ (None) > --- WEAPON (9) ------- (None) > --- INVENTORY (6) ---- Concept Zero-point Core Experimental Kinecellerator Centrium Medium Armor Plating Crosscalibrator Concept EMP Blanket Launcher Chaos Jack (35) Peak State ------------ > --- POWER ------------ Hybrid Graviton Reactor Concept Zero-point Core Concept Zero-point Core > --- PROPULSION ------- Experimental Armored Exoskeleton Concept Biometal Exoskeleton > --- UTILITY ---------- Concept Thermoelectric Network Concept Antigrav Storage Unit Experimental Optical Array Concept Weapon Articulator Concept Core Analysis Suite Medium Regenerative Plating Graphene Brace Improved Remote Force Field > --- WEAPON ----------- Precision Phase Gun Precision Phase Gun Precision Phase Gun Precision Phase Gun Precision Phase Gun Concept Variable Chargecaster Concept Variable Chargecaster Concept Variable Chargecaster Concept Variable Chargecaster > --- INVENTORY -------- Cooled Antimatter Reactor Hybrid Graviton Reactor Concept Zero-point Core Concept Chromion Battery Concept NT7 Matterbank Concept Countertargeting System Concept Recoil Nullifier Experimental Kinecellerator Centrium Medium Armor Plating Centrium Medium Armor Plating Concept Beam Splitter Concept Matter Streamer Crosscalibrator Concept Impact Drone Bay Transdimensional Reconstructor Concept Lightning Penetrator Quantum Rifle Quantum Rifle Concept Disintegration Ray Warp Cannon Concept Plasma Driver Multirail Concept Miniperforator Concept EMP Blanket Launcher Concept Tiamat Rocket Array Botcube [Rating: 305] Favorites ----------- Power Concept Zero-point Core Engine Light Angular Momentum Engine Power Core Concept Zero-point Core Reactor Improved Quantum Reactor Propulsion Enhanced Biometal Leg Treads Light Treads Leg Enhanced Biometal Leg Wheel Compact Wheel Utility High-capacity Storage Unit Device Advanced Force Field Storage High-capacity Storage Unit Processor Experimental Optical Array Hackware Ghost Barrier Protection Centrium Medium Armor Plating Weapon Helical Railgun Energy Gun Precision Phase Gun Energy Cannon Nova Cannon Ballistic Gun Helical Railgun Ballistic Cannon Compact Linear Accelerator Launcher Grenade Launcher Special Weapon CPS Tube Impact Weapon Thunder Hammer Slashing Weapon Falx Piercing Weapon Force Lance Special Melee Weapon Improved Datajack Build | -11 -10 -10 -8 -6 -6 -6 -6 -5 -5 -5 -5 -4 -4 -4 -4 -3 -3 -2 -2 -2 -1 ------- Run | Yrd Mat Sub Scr Fac Ext Cet Arc Fac Upp Upp War Pro Fac Arm Lab Res Tes Res Qua Frg Acc Slots Evolved 18 | . . . . 8 . . . 2 . . . . 2 . . 2 . 2 . . 2 Power 1 | . . . . . . . . . . . . . . . . 1 . . . . . Propulsion 4 | . . . . 3 . . . . . . . . 1 . . . . . . . . Utility 6 | . . . . 4 . . . 1 . . . . . . . 1 . . . . . Weapon 7 | . . . . 1 . . . 1 . . . . 1 . . . . 2 . . 2 Parts Attached 421 | . 15 5 10 30 10 10 6 14 3 4 15 3 9 20 4 25 35 1 13 137 52 Power 42 | . 2 . 3 4 1 2 . 1 . . . 1 1 1 . 5 2 . 2 15 2 Engine 9 | . 1 . 3 3 1 . . 1 . . . . . . . . . . . . . Core 5 | . 1 . . 1 . . . . . . . 1 . . . . . . . 2 . Reactor 28 | . . . . . . 2 . . . . . . 1 1 . 5 2 . 2 13 2 Propulsion 69 | . 2 1 2 11 2 . . 5 2 2 3 1 2 . . 10 8 1 3 12 2 Treads 7 | . 2 1 . 3 1 . . . . . . . . . . . . . . . . Leg 57 | . . . . 6 1 . . 5 2 1 3 1 2 . . 10 8 1 3 12 2 Wheel 5 | . . . 2 2 . . . . . 1 . . . . . . . . . . . Hover . | . . . . . . . . . . . . . . . . . . . . . . Flight . | . . . . . . . . . . . . . . . . . . . . . . Utility 134 | . 5 1 3 7 4 2 2 5 1 1 8 . 5 3 1 7 15 . 1 53 10 Device 62 | . 4 1 1 3 2 . 1 3 1 . 4 . 1 2 . 3 8 . . 21 7 Storage 9 | . 1 . 1 . . . . . . . . . 2 . . . 3 . . 2 . Processor 23 | . . . 1 1 . . . 2 . . 4 . 1 . . . 3 . . 11 . Hackware 7 | . . . . . . . . . . . . . 1 . . 3 . . 1 2 . Protection 33 | . . . . 3 2 2 1 . . 1 . . . 1 1 1 1 . . 17 3 Artifact . | . . . . . . . . . . . . . . . . . . . . . . Weapon 176 | . 6 3 2 8 3 6 4 3 . 1 4 1 1 16 3 3 10 . 7 57 38 Energy Gun 47 | . 1 1 . 1 . 2 . . . . . . . 2 1 . 2 . 1 9 27 Energy Cannon 16 | . 4 . . 2 2 . . . . . 1 . . 2 1 1 1 . . 2 . Ballistic Gun 93 | . . 1 1 2 . 3 4 3 . 1 1 1 1 10 1 2 7 . 5 43 7 Ballistic Cannon 6 | . . . . 2 . . . . . . . . . . . . . . . 1 3 Launcher 8 | . 1 . . 1 1 . . . . . 1 . . 2 . . . . . 2 . Special Weapon 3 | . . 1 . . . 1 . . . . 1 . . . . . . . . . . Impact Weapon . | . . . . . . . . . . . . . . . . . . . . . . Slashing Weapon 2 | . . . . . . . . . . . . . . . . . . . 1 . 1 Piercing Weapon . | . . . . . . . . . . . . . . . . . . . . . . Special Melee Weapon 1 | . . . 1 . . . . . . . . . . . . . . . . . . Unidentified Prototypes 66 | . 1 . . . . 3 . 1 . . 10 . 1 9 5 9 14 . 2 10 1 Corrupted Parts 14 | . . . . . . 10 . . . 2 . . . . . . . . . 2 . System Corruption 112 | . . . . . . 84 . . . 8 . . . . . . . . . 20 . Parts Lost 92 | . . 1 . 2 1 2 1 2 3 7 1 2 . . . 1 4 . . 25 40 Power 7 | . . . . . . 1 . 1 . 1 . . . . . . 1 . . 2 1 Propulsion 15 | . . 1 . 1 1 . 1 . 1 3 1 1 . . . . 1 . . 2 2 Utility 24 | . . . . 1 . 1 . 1 2 . . . . . . . 2 . . 10 7 Weapon 45 | . . . . . . . . . . 3 . 1 . . . 1 . . . 11 29 Highest Loss Streak 10 | . . 1 . 1 1 2 1 1 2 4 1 1 . . . 1 2 . . 3 10 To Critical Strikes 6 | . . . . . . . 1 . . . . . . . . . . . . 2 3 Average Backups 20 | . 13 14 17 20 20 20 20 20 20 15 16 19 19 20 9 19 19 18 20 22 22 Power 1 | . 1 1 1 1 1 . 1 1 1 . . 1 1 1 1 . 1 1 1 1 2 Propulsion 1 | . 3 3 2 1 2 2 1 1 2 1 1 1 1 2 1 1 1 1 . . . Utility 8 | . 2 3 4 7 7 7 8 8 6 5 7 9 9 6 2 6 7 8 7 10 10 Weapon 7 | . 5 6 7 7 7 8 8 6 7 6 5 6 6 8 3 9 8 7 7 8 8 Tool/Special . | . . . . . . . . . . . . . . . . . . . . . . Unused Backups 97 | . 10 . 5 3 5 3 3 5 1 . 5 . 4 7 1 4 2 1 4 27 7 Power 12 | . 3 . 1 . . . . . . . 1 . . 1 1 . . . . 3 2 Propulsion 19 | . 4 . . . . . . . . . 1 . 3 . . 3 . . 1 5 2 Utility 36 | . 2 . 1 3 2 . 3 4 . . 1 . 1 4 . 1 2 1 1 7 3 Weapon 25 | . 1 . 3 . 3 3 . 1 . . 2 . . 2 . . . . 1 9 . Tool/Special 5 | . . . . . . . . . 1 . . . . . . . . . 1 3 . Average Slot Usage (%) 90 | . 98 100 99 86 88 92 90 91 99 97 99 99 99 99 98 99 97 90 91 84 81 Engine 1 | . 10 . 4 5 6 4 . 2 . . . . . . . . . . . . . Core 2 | . 3 14 9 . . . . . . . . . 2 . . . . . . 2 6 Reactor 5 | . . . . . . 1 5 1 5 5 5 4 2 5 5 8 8 8 8 7 3 Treads 3 | . 26 28 18 8 2 6 6 . . . . . . . . . . . . . . Leg 14 | . 1 . . 5 12 13 10 24 29 26 26 28 31 30 30 27 24 16 16 10 6 Wheel 1 | . . . 9 12 9 6 6 . . . 1 . . . . . . . . . . Device 11 | . 12 14 13 9 13 13 13 11 8 12 13 5 5 6 9 9 8 8 8 12 16 Storage 5 | . 14 14 14 6 6 6 6 4 5 5 5 5 5 5 5 4 4 4 4 4 3 Processor 9 | . . . . 5 6 6 6 10 17 12 11 17 20 18 15 13 17 16 16 10 4 Protection 5 | . . . . 9 8 12 13 7 6 7 8 11 5 5 5 4 4 4 4 7 3 Energy Gun 4 | . 2 1 13 6 . . 1 . . . . . . . . . . . . 1 26 Energy Cannon 2 | . 22 18 . 5 18 7 . 1 . 1 . . 1 1 . 2 1 2 2 . . Ballistic Gun 19 | . 2 4 . 6 . 3 18 20 21 20 22 22 24 24 25 24 25 30 30 27 1 Launcher 1 | . . 4 13 . . 3 . . . . . . . . . . . . . . . Peak Build Rating 305 | . 24 24 20 69 71 97 97 122 117 117 146 143 162 156 167 191 205 208 212 297 305 Average Rating 178 | . 10 13 14 57 67 79 88 109 110 108 112 139 152 153 147 185 189 204 207 254 281 On Entrance 116 | 6 6 24 13 20 67 71 97 86 107 117 101 139 139 153 154 166 190 197 202 211 287 Avg Prop Armor Cover (%) 7 | . . . . 7 8 11 10 6 . . 2 . . . . . . . . . . Naked Turns 12 | . . . . . . . . . . . . . . . . . . . . . 12 Heaviest Build 162 | 14 34 34 59 87 95 98 94 106 99 99 108 98 93 106 112 127 130 139 149 162 154 Greatest Support 184 | 20 40 40 40 62 44 28 56 100 100 100 130 135 165 165 165 176 184 184 182 180 158 Greatest Overweight (x) 9 | . . 1 1 5 3 3 3 3 . 9 1 . . . . . . . . 2 1 Average Overweight (x) . | . . . . 1 2 2 2 . . . . . . . . . . . . . . Largest Inventory Capacity 26 | . 15 16 21 21 21 21 21 21 21 21 21 21 21 21 21 21 21 21 21 26 26 Average Capacity 22 | . 14 15 17 21 21 21 21 21 21 21 21 21 21 21 21 21 21 21 21 24 25 Most Carried 26 | . 15 16 21 21 21 21 21 21 21 19 21 21 21 21 21 21 21 21 21 26 26 Average Carried 21 | . 13 14 17 20 20 20 20 20 20 15 17 20 20 20 10 20 20 19 20 24 23 Final Capacity 26 | 8 15 16 21 21 21 21 21 21 21 21 21 21 21 21 21 21 21 21 21 26 6 Final Carried 26 | 6 15 16 21 21 21 21 21 21 19 14 21 21 21 21 21 21 21 21 21 26 6 Class Distribution -------------------- 59% | Scavenger-Executioner 11% | Mutant 11% | Scavenger-Tank 10% | Scavenger-Gunner 3% | Scavenger-Skirmisher Dominant Class ---------------- Mutant | -10/Materials Mutant | -10/Subcaves Mutant | -8/Scraptown Scavenger-Tank | -6/Factory Scavenger-Tank | -6/Extension Scavenger-Tank | -6/Cetus Scavenger-Tank | -6/Archives Scavenger-Skirmisher | -5/Factory Scavenger-Skirmisher | -5/Upper Caves Scavenger-Gunner | -5/Upper Caves Scavenger-Gunner | -5/Warlord Scavenger-Gunner | -4/Proximity Caves Scavenger-Gunner | -4/Factory Scavenger-Gunner | -4/Armory Scavenger-Gunner | -4/Lab Scavenger-Executioner | -3/Research Scavenger-Executioner | -3/Testing Scavenger-Executioner | -2/Research Scavenger-Executioner | -2/Quarantine Scavenger-Executioner | -2/Protoforge Scavenger-Executioner | -1/Access Resources | -11 -10 -10 -8 -6 -6 -6 -6 -5 -5 -5 -5 -4 -4 -4 -4 -3 -3 -2 -2 -2 -1 ----------- Run | Yrd Mat Sub Scr Fac Ext Cet Arc Fac Upp Upp War Pro Fac Arm Lab Res Tes Res Qua Frg Acc Matter Collected 38811 | 200 293 63 174 708 640 362 301 822 728 418 455 774 557 1198 . 1695 2269 203 1726 21093 4132 Remotely 1215 | . . . . . . . . . . . . . . . . . . . . 1215 . Salvage Created 66743 | . 723 81 . 679 574 672 301 650 547 331 613 960 489 1296 . 1283 2878 321 1886 31221 21238 Parts 2786 | . 39 4 . 33 25 22 11 21 29 15 31 29 26 64 . 47 174 25 101 1549 541 Haulers Intercepted 8 | . 1 . . . . . . 1 . . . . . . . 4 . . 1 1 . Recyclers Shooed 8 | . 5 . . 2 . . . . . . . . . . . . 1 . . . . Parts Field Recycled . | . . . . . . . . . . . . . . . . . . . . . . Retrieved Matter . | . . . . . . . . . . . . . . . . . . . . . . Parts Self-Destructed 65 | . . 8 . . . . . . 25 9 . 23 . . . . . . . . . Prevented . | . . . . . . . . . . . . . . . . . . . . . . Parts Restored 11 | . . . . . . . . . . . . . . . . . . . . 11 . Faulty 11 | . . . . . . . . . . . . . . . . . . . . 11 . Kills | -11 -10 -10 -8 -6 -6 -6 -6 -5 -5 -5 -5 -4 -4 -4 -4 -3 -3 -2 -2 -2 -1 ------- Run | Yrd Mat Sub Scr Fac Ext Cet Arc Fac Upp Upp War Pro Fac Arm Lab Res Tes Res Qua Frg Acc Combat Hostiles Destroyed 903 | . 12 2 . 14 11 8 4 9 11 12 8 14 7 24 . 11 33 4 23 427 269 Guns 610 | . 3 . . 8 2 . 3 9 10 3 8 12 6 24 . 8 33 4 22 345 110 Cannons 100 | . 3 2 . 2 6 1 . . . . . . 1 . . . . . . . 85 AOE 119 | . 6 . . 3 3 . . . 1 9 . 2 . . . 3 . . 1 54 37 Classes Destroyed 31 | . 8 1 . 4 . 1 . . . 1 3 2 . 1 . 1 1 . . 8 . Worker 5 | . 1 . . . . . . . . . . . . . . 1 2 . . . 1 Builder 7 | . 3 . . . . . . 1 . . . . . . . . . . . 2 1 Tunneler 4 | . . . . 1 . . . 1 . . . . . . . 2 . . . . . Hauler 8 | . 1 . . . . . . 1 . . . . . . . 4 . . 1 1 . Recycler 8 | . 4 . . . . . . . . . . . 1 . . . 2 . . . 1 Carrier 7 | . . . . . . . . . . . . . . . . . . . . 1 6 Mechanic 27 | . . . . . . . . . . . . . . . . . 1 . . 8 18 Operator 4 | . 1 . . . . . . . . . . . . 1 . . . 1 . 1 . Drone 32 | . . . . . . . . . . 1 . 1 . . . . . . . 30 . Watcher 12 | . 1 . . 1 1 2 . . . . . . . . . . 1 . 1 3 2 Swarmer 70 | . 3 . . 3 3 . . 1 3 4 . 2 4 7 . 4 3 . . 33 . Cutter 6 | . . . . . . . . . . . . . . . . . . . . . 6 Saboteur 27 | . . . . . . . . . . . . . . 1 . . . . . 10 16 Grunt 181 | . 9 . . 5 3 . . 7 4 5 2 2 3 7 . . 6 . 8 53 67 Brawler 32 | . . . . . . . . . . . . 4 . . . . 2 . . 12 14 Duelist 49 | . . . . . . . . . . . . . . 4 . . . . 1 20 24 Protector 28 | . . . . . . . . . . . . 1 . . . . . . . 9 18 Researcher 6 | . . . . . . . . . . . . . . . . . . . . 6 . Sentry 43 | . . . . 3 4 . 4 . . . . 1 . 3 . 1 2 1 3 20 1 Specialist 7 | . . . . . . . . . . . 1 . . . . 4 . . . 1 1 Hunter 57 | . . . . 1 . . . . . 2 2 4 . . . . 2 . 4 24 18 Programmer 120 | . . . . 2 1 . . 1 2 . . . . 2 . 1 15 3 7 37 49 Q-Series 5 | . . . . . . . . . . . . . . . . . . . . 1 4 Behemoth 3 | . . . . . . . . . . . . . . . . 1 . . . 1 1 Cetus Guard 8 | . . . . . . 8 . . . . . . . . . . . . . . . Hotshot 60 | . . . . . . . . . . . . . . . . . . . . 60 . Decapitator 22 | . . . . . . . . . . . . . . . . . . . . 22 . Immortal 23 | . . . . . . . . . . . . . . . . . . . . 23 . Investigator 2 | . . . . . . . . . . . . . . . . . . . . . 2 Striker 57 | . . . . . . . . . . . 1 . . . . 3 2 . . 29 22 Executioner 67 | . . . . . . . . . . . 2 . . . . 1 . . . 32 32 Alpha 7 3 | . . . . . . . . . . . . . . . . . . . . 3 . V-Series 3 | . . . . . . . . . . . . . . . . . . . . 3 . Protovariant X 1 | . . . . . . . . . . . . . . . . . 1 . . . . Subdweller 2 | . . 2 . . . . . . . . . . . . . . . . . . . Elite 1 | . . . . . . . . . . . . . . . . . . . . 1 . Scrapoid 2 | . . . . . . . . . . . . . . . . . . . . 2 . Wasp 3 | . . . . . . . . . . . . . . . . . . . . 3 . Thug 1 | . . . . . . . . . . . 1 . . . . . . . . . . Butcher 3 | . . . . . . 1 . . . . . . . . . . . . . 2 . Guerrilla 2 | . . . . . . . . . 2 . . . . . . . . . . . . Best Kill Streak 51 | . 8 2 . 4 3 5 1 6 7 5 4 5 3 4 . 4 7 5 4 26 51 Combat Bots Only 47 | . 4 2 . 3 3 4 1 5 7 5 4 5 3 4 . 4 5 4 4 24 47 Max Kills in Single Turn 9 | . 2 1 . 4 1 1 1 4 2 3 2 2 2 2 . 2 3 2 2 8 9 Gunslinging 3 | . . . . . . . . 2 . . 1 1 1 1 . 1 1 . 1 3 2 Exploded 8 | . 1 . . 3 1 . . . 1 3 . 2 . . . 2 . . 1 8 8 Melee . | . . . . . . . . . . . . . . . . . . . . . . Uniques/NPCs Destroyed . | . . . . . . . . . . . . . . . . . . . . . . Combat | -11 -10 -10 -8 -6 -6 -6 -6 -5 -5 -5 -5 -4 -4 -4 -4 -3 -3 -2 -2 -2 -1 -------- Run | Yrd Mat Sub Scr Fac Ext Cet Arc Fac Upp Upp War Pro Fac Arm Lab Res Tes Res Qua Frg Acc Hostile Shots Fired 3894 | . 56 9 . 205 144 36 36 68 49 122 32 89 15 48 . 34 165 10 100 1597 1079 Missed 1193 | . 17 2 . 84 54 9 15 18 19 25 11 30 4 18 . 15 47 3 38 452 332 Deflected 5 | . . . . . . . . . . . . . . . . . . . . . 5 Hits 2701 | . 39 7 . 121 90 27 21 50 30 97 21 59 11 30 . 19 118 7 62 1145 747 Melee 142 | . . . . . . . . . . . . . . . . 4 6 . . 110 22 Projectile 2559 | . 39 7 . 121 90 27 21 50 30 97 21 59 11 30 . 15 112 7 62 1035 725 AOE 19 | . . . . . . . . . . . . . . . . . . . . 17 2 Critical Strikes 238 | . . 2 . 1 1 4 1 7 6 7 2 1 . 2 . 1 14 2 3 123 61 Actively Blocked 88 | . . . . . . . . . . . . . . . . . . . . 57 31 Part Disruptions 8 | . . . . 1 . . . . . . . . . . . . 1 1 1 . 4 Damage Taken 42353 | . 468 138 . 1501 892 749 497 981 540 1739 372 905 210 556 . 895 2793 161 690 17123 11143 Core 3494 | . 86 18 . 96 50 98 . 59 . 89 15 77 17 . . . 154 . 44 1219 1472 Absorbed by Shields 21825 | . . . . . 40 . . . . . 190 116 . . . 12 242 . 723 14408 6094 Redirected to Shielding 601 | . . . . . . . . . . . . . . . . . . . . 601 . Ignored by Resistances 7318 | . . . . . . . . . . . . . . . . . . . . 4214 3104 Regen/Repaired (Parts) 3493 | . . . . 460 . . . 169 . . 792 . . . . 254 427 25 83 1283 . Core Remaining (%) 83 | 100 . . 97 . . . 78 . . . . 60 . . 97 . 82 . . 72 . Volleys Fired 1683 | . 45 13 . 54 33 23 24 34 29 41 17 31 20 63 16 50 76 12 50 723 329 Largest 9 | . 2 2 . 3 3 3 3 5 4 4 4 4 5 5 1 6 6 8 8 9 9 Hottest 850 | . 136 136 . 229 265 224 138 171 138 183 240 142 237 180 100 288 200 328 328 662 850 Shots Fired 6713 | . 82 23 . 150 90 30 57 111 90 89 59 113 52 178 16 160 369 68 266 3210 1500 Gun 6014 | . 36 . . 114 15 . 57 100 81 65 57 112 39 149 12 127 352 63 246 3040 1349 Cannon 547 | . 38 20 . 35 72 12 . 11 9 14 . . 13 29 4 29 17 5 20 110 109 Launcher 149 | . 8 3 . 1 3 18 . . . 10 . 1 . . . 3 . . . 60 42 Special 3 | . . . . . . . . . . . 2 . . . . 1 . . . . . Kinetic 4350 | . 18 . . 59 8 9 50 100 81 64 56 112 39 149 12 127 352 63 246 2672 133 Thermal 2106 | . 56 20 . 90 79 3 7 11 9 15 1 . 13 28 . 29 17 5 20 400 1303 Explosive 62 | . 8 3 . 1 . . . . . 10 . 1 . . . 3 . . . 29 7 Electromagnetic 179 | . . . . . 3 18 . . . . . . . . . . . . . 109 49 Entropic 13 | . . . . . . . . . . . . . . 1 4 . . . . . 8 Robot Hit Streak 64 | . 9 13 . 7 7 6 5 9 10 3 16 6 4 16 . 15 22 6 11 35 64 Robot Miss Streak 10 | . 3 1 . 4 3 1 2 3 5 6 6 4 3 4 . 4 5 4 4 10 7 Penetration Max 3 | . . . . 1 . . . 1 1 1 1 1 1 1 . 1 2 1 1 2 3 Secondary Targets 231 | . 2 . . 1 . . . 5 1 . 3 2 1 2 . 2 10 2 6 134 60 Max Gunslinging Chain 3 | . 1 . . 1 . . . 2 1 . 1 1 1 1 . 1 1 1 2 3 3 Shots Hit Robots 4045 | . 48 13 3 97 55 6 35 53 39 21 39 59 22 76 . 65 212 35 118 1923 1126 Core Hits 2622 | . 34 4 . 52 22 21 10 22 17 30 23 37 14 48 . 41 90 13 54 1241 849 Critical Kills 180 | . . . . . . . 1 2 4 . 1 3 1 10 . 5 10 . 5 46 92 Critical Parts Destroyed 207 | . . . . 1 . . 4 4 7 3 4 5 1 4 . 4 14 . 4 55 97 Critical Strikes 484 | . . . . 2 3 1 5 6 11 3 5 9 2 15 . 10 25 2 9 117 259 Burn 57 | . . . . 1 2 . . . . . . . . . . . . . . 4 50 Meltdown 2 | . . . . . . . . . . . . . . . . . . . . . 2 Destroy 420 | . . . . 1 . . 5 6 11 3 5 9 2 15 . 10 25 2 9 112 205 Blast 4 | . . . . . 1 1 . . . . . . . . . . . . . . 2 Corrupt 1 | . . . . . . . . . . . . . . . . . . . . 1 . Melee Attacks 3 | . . . 3 . . . . . . . . . . . . . . . . . . Impact . | . . . . . . . . . . . . . . . . . . . . . . Slashing . | . . . . . . . . . . . . . . . . . . . . . . Piercing . | . . . . . . . . . . . . . . . . . . . . . . Sneak Attacks 3 | . . . 3 . . . . . . . . . . . . . . . . . . Combat Hostiles . | . . . . . . . . . . . . . . . . . . . . . . Follow-up Attacks . | . . . . . . . . . . . . . . . . . . . . . . Damage Inflicted 164226 | . 1578 266 . 2191 1543 1272 855 1640 1075 1911 1282 1730 722 2341 . 2909 6376 1077 3959 88023 43476 Guns 122909 | . 344 . . 1532 190 . 855 1614 1075 547 1282 1570 563 2297 . 1803 6376 1077 3788 69136 28860 Cannons 6770 | . 434 266 . 432 1200 303 . . . . . . 159 44 . 155 . . 42 1385 2350 Explosions 34389 | . 792 . . 227 153 969 . . . 1364 . 160 . . . 951 . . 129 17461 12183 Melee . | . . . . . . . . . . . . . . . . . . . . . . Ramming 158 | . 8 . . . . . . 26 . . . . . . . . . . . 41 83 Kinetic 85685 | . 169 . . 778 171 206 675 1614 1075 547 1282 1570 563 2341 . 1803 6376 1077 3788 58950 2700 Thermal 42690 | . 771 266 . 1186 1231 97 180 . . . . . 159 . . 155 . . 42 10101 28502 Explosive 25046 | . 630 . . 227 . . . . . 1364 . 160 . . . 951 . . 129 14778 6807 Electromagnetic 10205 | . . . . . 141 969 . . . . . . . . . . . . . 4082 5013 Impact . | . . . . . . . . . . . . . . . . . . . . . . Slashing . | . . . . . . . . . . . . . . . . . . . . . . Piercing . | . . . . . . . . . . . . . . . . . . . . . . Entropic 371 | . . . . . . . . . . . . . . . . . . . . . 371 Phasic 71 | . . . . . . . . . . . . . . . . . . . . 71 . Highest Corruption 77 | . 2 2 . 3 1 77 77 . . 8 9 9 . 1 1 . 16 1 13 38 56 Average Corruption 10 | . 1 2 . 1 1 40 77 . . 4 8 9 . 1 1 . 9 1 4 12 16 Corruption Purged 78 | . . . . . . . . . . . . . . . . . . . . 78 . Corruption Blocked . | . . . . . . . . . . . . . . . . . . . . . . Effects 593 | . 11 9 . 6 4 6 31 . . 23 7 20 . 2 5 . 53 1 12 252 151 Message Errors 106 | . 2 3 . . 1 1 2 . . 3 2 7 . . . . 7 . 1 59 18 Matter Fused 133 | . 3 2 . 2 2 2 5 . . 6 2 6 . 1 2 . 15 . 3 53 29 Heat Flow Errors 49 | . 1 1 . . . 1 . . . 3 1 1 . . . . 4 1 2 21 13 Energy Discharges 63 | . 2 1 . 2 . 1 3 . . 2 1 . . . . . 9 . 3 28 11 Parts Rejected 9 | . . . . 1 . . 2 . . 1 . . . . . . . . . 2 3 Parts Fused 4 | . . 1 . . . . . . . . . . . . . . . . . 2 1 Data Loss (minor) 66 | . 1 . . 1 . 1 3 . . 5 1 3 . . 2 . 6 . 2 25 16 Data Loss (major) 29 | . 2 1 . . . . 2 . . 1 . 1 . . . . 3 . . 12 7 Misfires 14 | . . . . . 1 . . . . 2 . . . . . . 4 . . 2 5 Alerts 10 | . . . . . . . . . . . . . . . 1 . . . 1 8 . Misdirections 9 | . . . . . . . . . . . . . . . . . 1 . . 4 4 Weapon Failures 101 | . . . . . . . 14 . . . . 2 . 1 . . 4 . . 36 44 Overload Shots 1 | . . . . . . . . . . . 1 . . . . . . . . . . Overflow Damage 736 | . 50 . . 16 16 . . . . 8 . 12 3 . . . . . . 296 335 Projectiles 74 | . . . . 16 16 . . . . . . . 3 . . . . . . 20 19 Explosions 635 | . 50 . . . . . . . . 8 . 12 . . . . . . . 276 289 Melee 27 | . . . . . . . . . . . . . . . . . . . . . 27 Knockbacks 49 | . . . . . 2 . . . . . . . . . . . . . . 1 46 Impact . | . . . . . . . . . . . . . . . . . . . . . . Kinetic 45 | . . . . . 2 . . . . . . . . . . . . . . 1 42 Secondary 4 | . . . . . . . . . . . . . . . . . . . . . 4 Self-Inflicted Damage 1748 | . 21 . . . . 29 . . . . . . . . . 192 . . . 1104 402 Shots 42 | . 1 . . . . 3 . . . . . . . . . 2 . . . 26 10 Rammed 4 | . 2 . . . . . . . . . . . . . . . . . . . 2 Targets Rammed 12 | . 2 . . . . . . 1 . . . . . . . . . . . 5 4 Kicked 8 | . . . . . . . . 1 . . . . . . . . . . . 5 2 Crushed . | . . . . . . . . . . . . . . . . . . . . . . Highest Temperature 723 | . 369 64 . 228 207 232 . 174 248 344 118 247 63 9 . 128 226 218 207 481 723 Average Temperature 124 | . 108 24 . 72 71 66 . 48 77 171 62 174 13 4 . 25 44 65 27 137 170 Received Heat Transfer 4187 | . 210 12 . 363 273 . 99 357 117 345 4 38 42 36 . . 168 . 36 1635 452 Thermoelectric Energy+ 38696 | . . . . . . . . . . . . . . . . . . . . 4872 33824 Effects 49 | . 1 . . . . . . . . 2 . . . . . . . . . 12 34 Shutdowns 1 | . . . . . . . . . . . . . . . . . . . . . 1 Energy Bleed 15 | . . . . . . . . . . 1 . . . . . . . . . 3 11 Interference 25 | . . . . . . . . . . . . . . . . . . . . 7 18 Matter Decay 2 | . . . . . . . . . . . . . . . . . . . . 1 1 Short Circuit 3 | . 1 . . . . . . . . . . . . . . . . . . 1 1 Damage (minor) 1 | . . . . . . . . . . 1 . . . . . . . . . . . Damage (major) 1 | . . . . . . . . . . . . . . . . . . . . . 1 Damage (core) 1 | . . . . . . . . . . . . . . . . . . . . . 1 Siege Activations . | . . . . . . . . . . . . . . . . . . . . . . Martial Activations . | . . . . . . . . . . . . . . . . . . . . . . Shielding Activations 1 | . . . . . . . . . . . . . . . . . . . . . 1 Total Turns 7 | . . . . . . . . . . . . . . . . . . . . . 7 Longest Duration 7 | . . . . . . . . . . . . . . . . . . . . . 7 Robots Disrupted 2 | . . . . . . . . . . . . . . . . . . . . 2 . Combat Hostiles 2 | . . . . . . . . . . . . . . . . . . . . 2 . Robots Corrupted 56 | . . . . . . 7 . . . . . . . . . . . . . 26 23 Combat Hostiles 53 | . . . . . . 7 . . . . . . . . . . . . . 26 20 Parts Fried 121 | . . . . . . 7 . . 1 . . . . . . . . . . 64 49 Impact Corruptions 3 | . . . . . . . . . . . . . . . . . . . . . 3 Robots Melted 24 | . . . . 1 . . . . . . . . . . . . . . . 1 22 Combat Hostiles 20 | . . . . 1 . . . . . . . . . . . . . . . 1 18 Parts Melted 225 | . 2 . . 7 4 . 2 . 1 . 6 . 1 . . . 1 . . 18 183 Heat Transferred 54252 | . 1395 481 . 1918 1993 150 222 . . . . . 250 . . 148 . . 37 10047 37611 Parts Sabotaged 8 | . . . . . . . . . . . . . . . . . . . . . 8 Parts Stolen . | . . . . . . . . . . . . . . . . . . . . . . Parts Stripped . | . . . . . . . . . . . . . . . . . . . . . . Power Chain Reactions 15 | . . . . . 1 . . . . . . . . . . . . . . 6 8 Alert | -11 -10 -10 -8 -6 -6 -6 -6 -5 -5 -5 -5 -4 -4 -4 -4 -3 -3 -2 -2 -2 -1 ------- Run | Yrd Mat Sub Scr Fac Ext Cet Arc Fac Upp Upp War Pro Fac Arm Lab Res Tes Res Qua Frg Acc Maximum Alert Level 5 | . . . . . 2 1 . . . . . . 2 2 . 1 3 2 3 5 5 Low Security (%) 26 | . 100 . . 100 86 21 100 100 . . . . . 57 . 73 37 . 10 . . Level 1 8 | . . . . . 5 78 . . . . . . 56 13 . 26 43 69 28 . . Level 2 6 | . . . . . 8 . . . . . . . 43 29 . . 12 30 25 3 . Level 3 3 | . . . . . . . . . . . . . . . . . 5 . 36 3 . Level 4 3 | . . . . . . . . . . . . . . . . . . . . 6 . Level 5 43 | . . . . . . . . . . . . . . . . . . . . 86 29 High Security 7 | . . . . . . . . . . . . . . . . . . . . . 70 Max Security . | . . . . . . . . . . . . . . . . . . . . . . Sterilizations 1 | . . . . . . . . . . . . . . . . . . . . . 1 Peak Influence 14187 | . 171 . . 196 488 270 123 125 . . . . 479 557 . 332 726 506 903 11214 14187 Initial 6728 | . . . . . 42 266 70 21 . . . . 334 147 . . 180 401 279 496 6728 Average 3310 | . 67 . . 99 108 222 92 23 . . . . 378 242 . 81 295 406 512 4696 9037 Influence Increases 28643 | . 455 . . 510 892 179 133 329 230 275 262 303 572 798 . 590 1148 215 1280 11818 8654 Destroy 0b10 Robot/C 18320 | . 240 . . 280 460 160 80 180 220 220 200 260 140 480 . 260 680 100 540 7980 5840 Destroy 0b10 Robot/NC 755 | . 55 . . 10 15 10 . 15 . 5 . 5 5 5 . 35 40 5 20 290 240 Destroy Leader 2350 | . 54 . . 82 84 . . 12 10 20 . 30 20 70 . 78 94 20 96 864 816 Allied During Kill 960 | . . . . . 200 9 . . . . 32 8 . . . 77 64 30 21 48 471 Successful Hack 170 | . . . . 14 . . . 22 . . . . 26 . . . 12 36 36 24 . Disable Machine 1635 | . 60 . . 45 75 . 45 30 . . . . 30 165 . 30 180 . 225 705 45 Destroy Structure 2526 | . 46 . . 19 28 . 8 70 . . . . 36 48 . 110 48 24 327 1009 753 Advance Influence 300 | . . . . . . . . . . . . . 300 . . . . . . . . Partial Spotted 60 | . . . . 15 . . . . . . . . . . . . 15 . . 15 15 Lose Combat Pursuer 705 | . . . . 45 30 . . . . 30 30 . 15 30 . . 15 . 15 165 330 Miscellaneous 862 | . . . . . . . . . . . . . . . . . . . . 718 144 Influence Decreases 14473 | . 455 . . 422 504 480 245 392 192 297 126 400 327 545 553 270 754 433 893 1487 5698 Entered New Map 6849 | . . . . . 46 210 105 42 . 8 16 152 21 153 553 . 140 313 217 387 4486 Time Decay 5779 | . 455 . . 402 378 190 130 350 172 249 40 198 206 392 . 235 574 120 526 770 392 Search Patrol Dispatched 100 | . . . . . . . . . . . . . 100 . . . . . . . . Lost Part 840 | . . . . 20 . 20 10 . 20 40 10 20 . . . 10 40 . . 250 400 Lost Ally 730 | . . . . . 80 60 . . . . 60 30 . . . . . . . 80 420 Purge Threat 175 | . . . . . . . . . . . . . . . . 25 . . 150 . . Squads Dispatched 158 | . 2 . . 3 3 . . 4 . . . 1 1 6 . 6 7 1 12 27 85 Investigation 15 | . . . . . 1 . . 1 . . . . . 3 . 4 . . . 6 . Extermination 25 | . . . . 2 . . . 1 . . . . . 2 . . 4 1 5 8 2 Reinforcement 24 | . 2 . . 1 2 . . 2 . . . . 1 1 . 2 1 . 2 10 . Assault 87 | . . . . . . . . . . . . 1 . . . . 1 . 2 3 80 Garrison 7 | . . . . . . . . . . . . . . . . . 1 . 3 . 3 Intercept . | . . . . . . . . . . . . . . . . . . . . . . Searches Triggered 1 | . . . . . . . . . . . . . 1 . . . . . . . . Construction Impeded 1 | . . . . . . . . 1 . . . . . . . . . . . . . Haulers Reinforced 3 | . . . . . . . . 1 . . . . . . . 1 1 . . . . Active Scanning Responses . | . . . . . . . . . . . . . . . . . . . . . . Cargo Convoy Interrupts . | . . . . . . . . . . . . . . . . . . . . . . Stealth | -11 -10 -10 -8 -6 -6 -6 -6 -5 -5 -5 -5 -4 -4 -4 -4 -3 -3 -2 -2 -2 -1 --------- Run | Yrd Mat Sub Scr Fac Ext Cet Arc Fac Upp Upp War Pro Fac Arm Lab Res Tes Res Qua Frg Acc Distress Signals 60 | . 2 . . . 3 2 . . . . 2 1 1 2 . 7 2 1 3 31 3 Communications Jammed 86 | . . . . . . . . . . . . . . 2 . . 5 . . 79 . Distress Signals 85 | . . . . . . . . . . . . . . 2 . . 4 . . 79 . Times Spotted 1297 | . 24 2 . 24 20 8 5 15 11 14 42 15 12 30 . 17 42 7 31 526 452 Peak Tracking Total 17 | . 5 2 . 6 5 5 1 5 4 5 13 5 4 5 . 5 6 4 4 14 17 Tactical Retreats 35 | . . . . 2 2 . . . . 1 1 . 1 1 . . 1 . 1 9 16 Traps | -11 -10 -10 -8 -6 -6 -6 -6 -5 -5 -5 -5 -4 -4 -4 -4 -3 -3 -2 -2 -2 -1 ------- Run | Yrd Mat Sub Scr Fac Ext Cet Arc Fac Upp Upp War Pro Fac Arm Lab Res Tes Res Qua Frg Acc Traps Triggered 33 | . 3 . . 2 3 . . 1 . . . . . 1 . 1 . . 3 19 . Indirectly 3 | . . . . . . . . . . . . . . . . . . . . 3 . Trap Hack Attempts . | . . . . . . . . . . . . . . . . . . . . . . Triggered . | . . . . . . . . . . . . . . . . . . . . . . Disarmed . | . . . . . . . . . . . . . . . . . . . . . . Reprogrammed . | . . . . . . . . . . . . . . . . . . . . . . Reused . | . . . . . . . . . . . . . . . . . . . . . . Traps Extracted . | . . . . . . . . . . . . . . . . . . . . . . Installed . | . . . . . . . . . . . . . . . . . . . . . . Triggered . | . . . . . . . . . . . . . . . . . . . . . . Machines | -11 -10 -10 -8 -6 -6 -6 -6 -5 -5 -5 -5 -4 -4 -4 -4 -3 -3 -2 -2 -2 -1 ---------- Run | Yrd Mat Sub Scr Fac Ext Cet Arc Fac Upp Upp War Pro Fac Arm Lab Res Tes Res Qua Frg Acc Machines Disabled 137 | . 4 . . 3 7 . 3 2 . . 1 . 2 11 3 2 15 . 15 64 5 Max in Single Turn 4 | . 2 . . 1 1 . 1 1 . . 1 . 1 2 1 1 1 . 3 4 2 Garrison Access 1 | . . . . 1 . . . . . . . . . . . . . . . . . Machines Repaired . | . . . . . . . . . . . . . . . . . . . . . . Machines Dismantled . | . . . . . . . . . . . . . . . . . . . . . . Machines Sabotaged . | . . . . . . . . . . . . . . . . . . . . . . Overloaded Fab Kills . | . . . . . . . . . . . . . . . . . . . . . . Hacking | -11 -10 -10 -8 -6 -6 -6 -6 -5 -5 -5 -5 -4 -4 -4 -4 -3 -3 -2 -2 -2 -1 --------- Run | Yrd Mat Sub Scr Fac Ext Cet Arc Fac Upp Upp War Pro Fac Arm Lab Res Tes Res Qua Frg Acc Machines Accessed 55 | . . . 3 3 1 . . 5 2 . 1 . 2 5 . 9 3 3 7 10 1 Terminals 19 | . . . . 1 . . . 1 1 . . . 2 2 . 3 1 . 3 4 1 Fabricators 1 | . . . . . . . . . . . . . . 1 . . . . . . . Repair Stations 2 | . . . . 1 . . . 1 . . . . . . . . . . . . . Recycling Units 10 | . . . . . 1 . . 1 . . . . . 2 . 3 . . . 3 . Scanalyzers 14 | . . . . . . . . 2 . . . . . . . 2 2 2 3 3 . Garrison Access 4 | . . . . 1 . . . . . . . . . . . 1 . 1 1 . . Total Hacks 139 | . . . 19 9 1 . . 14 7 . 1 . 6 9 . 25 6 8 14 19 1 Successful 72 | . . . 19 4 1 . . 8 7 . 1 . 3 3 . 10 1 2 3 10 . Failed 67 | . . . . 5 . . . 6 . . . . 3 6 . 15 5 6 11 9 1 Catastrophic 20 | . . . . . . . . 2 . . . . 1 3 . 5 3 . 4 1 1 Database Lockouts . | . . . . . . . . . . . . . . . . . . . . . . Manual 35 | . 1 . . 4 1 . . 2 . . . . 3 5 . 8 . . 2 8 1 Terminals 47 | . . . . 4 . . . 2 6 . . . 6 3 . 12 1 . 6 6 1 Fabricators 2 | . . . . . . . . . . . . . . 2 . . . . . . . Repair Stations 7 | . . . . 3 . . . 4 . . . . . . . . . . . . . Recycling Units 16 | . . . . . 1 . . 1 . . . . . 4 . 4 . . . 6 . Scanalyzers 36 | . . . . . . . . 7 . . . . . . . 6 5 4 7 7 . Garrison Access 10 | . . . . 2 . . . . . . . . . . . 3 . 4 1 . . Terminal Hacks 36 | . . . 19 1 . . . . 7 . 1 . 2 . . 3 . . 1 2 . Record 21 | . . . 15 . . . . . 6 . . . . . . . . . . . . Part Schematic 1 | . . . . . . . . . . . . . . . . 1 . . . . . Robot Analysis 4 | . . . 4 . . . . . . . . . . . . . . . . . . Open Door 2 | . . . . . . . . . 1 . 1 . . . . . . . . . . Branch Access Points 3 | . . . . 1 . . . . . . . . 1 . . 1 . . . . . Alert Level 2 | . . . . . . . . . . . . . 1 . . . . . . 1 . Unreport Threat 2 | . . . . . . . . . . . . . . . . 1 . . 1 . . Proto ID Catalog 1 | . . . . . . . . . . . . . . . . . . . . 1 . Fabricator Hacks 1 | . . . . . . . . . . . . . . 1 . . . . . . . Network Status 1 | . . . . . . . . . . . . . . 1 . . . . . . . Repair Station Hacks 5 | . . . . 2 . . . 3 . . . . . . . . . . . . . Scan Component 3 | . . . . 1 . . . 2 . . . . . . . . . . . . . Repair 2 | . . . . 1 . . . 1 . . . . . . . . . . . . . Recycling Unit Hacks . | . . . . . . . . . . . . . . . . . . . . . . Scanalyzer 18 | . . . . . . . . 4 . . . . . . . 4 1 2 2 5 . Insert Component 5 | . . . . . . . . . . . . . . . . 1 . . . 4 . Retrieve Study 13 | . . . . . . . . 4 . . . . . . . 3 1 2 2 1 . Garrison Access Hacks 1 | . . . . 1 . . . . . . . . . . . . . . . . . Seal Access 1 | . . . . 1 . . . . . . . . . . . . . . . . . Unauthorized Hacks 11 | . . . . . 1 . . 1 . . . . 1 2 . 3 . . . 3 . Terminals 1 | . . . . . . . . . . . . . 1 . . . . . . . . Assimilate 1 | . . . . . . . . . . . . . 1 . . . . . . . . Fabricators . | . . . . . . . . . . . . . . . . . . . . . . Repair Stations . | . . . . . . . . . . . . . . . . . . . . . . Recycling Units 10 | . . . . . 1 . . 1 . . . . . 2 . 3 . . . 3 . Fedlink 10 | . . . . . 1 . . 1 . . . . . 2 . 3 . . . 3 . Scanalyzers . | . . . . . . . . . . . . . . . . . . . . . . Garrison Access . | . . . . . . . . . . . . . . . . . . . . . . Data Cores Recovered 1 | . . . . . . . . . . . . . . . . . . 1 . . . Used . | . . . . . . . . . . . . . . . . . . . . . . Hacking Detections 40 | . . . . 2 . . . 5 1 . . . 2 4 . 6 3 3 7 6 1 Full Trace Events 2 | . . . . . . . . . . . . . . 1 . 1 . . . . . Feedback Events . | . . . . . . . . . . . . . . . . . . . . . . Feedback Blocked . | . . . . . . . . . . . . . . . . . . . . . . Robot Schematics Acquired 4 | . . . . . . . . . . . . . . . . . . . 1 3 . Robots Built . | . . . . . . . . . . . . . . . . . . . . . . Authchips . | . . . . . . . . . . . . . . . . . . . . . . Time . | . . . . . . . . . . . . . . . . . . . . . . Total Robot Build Rating . | . . . . . . . . . . . . . . . . . . . . . . Part Schematics Acquired 29 | . . . . . . . . . . . . . . . . 1 . . 5 23 . Parts Built . | . . . . . . . . . . . . . . . . . . . . . . Authchips . | . . . . . . . . . . . . . . . . . . . . . . Time . | . . . . . . . . . . . . . . . . . . . . . . Total Part Build Rating . | . . . . . . . . . . . . . . . . . . . . . . Part Studies Acquired 13 | . . . . . . . . 4 . . . . . . . 3 1 2 2 1 . Parts Repaired 2 | . . . . 1 . . . 1 . . . . . . . . . . . . . Time 174 | . . . . 50 . . . 124 . . . . . . . . . . . . . Parts Recycled . | . . . . . . . . . . . . . . . . . . . . . . Recycled Matter . | . . . . . . . . . . . . . . . . . . . . . . Retrieved Matter . | . . . . . . . . . . . . . . . . . . . . . . Retrieved Components . | . . . . . . . . . . . . . . . . . . . . . . Parts Scanalyzed . | . . . . . . . . . . . . . . . . . . . . . . Part Schematics Acquired . | . . . . . . . . . . . . . . . . . . . . . . Parts Damaged . | . . . . . . . . . . . . . . . . . . . . . . Bothacking | -11 -10 -10 -8 -6 -6 -6 -6 -5 -5 -5 -5 -4 -4 -4 -4 -3 -3 -2 -2 -2 -1 ------------ Run | Yrd Mat Sub Scr Fac Ext Cet Arc Fac Upp Upp War Pro Fac Arm Lab Res Tes Res Qua Frg Acc Used RIF Installer . | . . . . . . . . . . . . . . . . . . . . . . Robots Hacked 1 | . . . 1 . . . . . . . . . . . . . . . . . . Non-combat . | . . . . . . . . . . . . . . . . . . . . . . Combat 1 | . . . 1 . . . . . . . . . . . . . . . . . . Robot Hacks Applied 3 | . . . 3 . . . . . . . . . . . . . . . . . . parse_system 3 | . . . 3 . . . . . . . . . . . . . . . . . . Relay Couplers Released 4 | . . . . . . . . . . . . . . . . . . . 4 . . Programmers 4 | . . . . . . . . . . . . . . . . . . . 4 . . Fabnet Peak Effective % . | . . . . . . . . . . . . . . . . . . . . . . Robots Rewired 15 | . . . . . 8 . . . . . 5 1 . . . . 1 . . . . Allies Hacked 1 | . . . . . . . . . . . . . . . . . . . . . 1 Hacks Repelled . | . . . . . . . . . . . . . . . . . . . . . . Allies | -11 -10 -10 -8 -6 -6 -6 -6 -5 -5 -5 -5 -4 -4 -4 -4 -3 -3 -2 -2 -2 -1 -------- Run | Yrd Mat Sub Scr Fac Ext Cet Arc Fac Upp Upp War Pro Fac Arm Lab Res Tes Res Qua Frg Acc Total Allies 53 | . . . . . 9 . . . . . 5 1 1 . . 4 1 . 4 7 21 Largest Group 9 | . . . . . 9 5 . . . . 5 3 1 1 . 4 1 1 5 4 4 Highest-Rated Group 482 | . . . . . 244 138 . . . . 267 175 26 26 . 200 154 154 482 325 356 Highest-Rated Ally 219 | . . . . . 39 31 . . . . 64 64 26 26 . 50 154 154 154 155 219 Initial UFD Resources 87 | . . . . 24 24 34 34 37 47 47 47 50 50 50 64 68 84 87 87 87 . Total Orders 23 | . . . . . . 2 . . . . 3 1 2 1 . . 2 . 1 . 11 STAY 9 | . . . . . . 1 . . . . 1 . 1 1 . . 1 . 1 . 3 FOLLOW 3 | . . . . . . . . . . . . . 1 . . . 1 . . . 1 AID 4 | . . . . . . 1 . . . . 2 1 . . . . . . . . . RETURN 7 | . . . . . . . . . . . . . . . . . . . . . 7 Ally Attacks 373 | . . . . . 58 9 . . . . 13 5 . . . 10 14 3 16 32 213 Total Damage 14288 | . . . . . 1120 169 . . . . 507 117 . . . 291 751 181 743 1078 9331 Kills 69 | . . . . . 14 . . . . . 2 . . . . 2 3 1 6 2 39 Allies Corrupted 3 | . . . . . . . . . . . 1 1 . . . . . . . . 1 Allies Melted 6 | . . . . . . . . . . . . . . . . . . . . 6 . X0-1V1 Amusement Gains 699 | . 16 . . 15 . . . 40 . . 20 . 15 . . 25 5 55 70 400 38 Average Entertainment 55 | . 15 9 . 7 10 6 3 23 22 9 11 15 25 16 . 18 19 68 42 79 100 Good Acts 204 | . . 2 . 6 3 4 5 9 . 1 . . 4 6 . 4 5 2 10 96 47 Bad Acts 151 | . . 1 . 3 5 1 . 1 6 7 2 4 1 3 . 1 13 1 8 87 7 Intel | -11 -10 -10 -8 -6 -6 -6 -6 -5 -5 -5 -5 -4 -4 -4 -4 -3 -3 -2 -2 -2 -1 ------- Run | Yrd Mat Sub Scr Fac Ext Cet Arc Fac Upp Upp War Pro Fac Arm Lab Res Tes Res Qua Frg Acc Active Infowar (turns) 19898 | . . . . 240 . . . 1106 636 . 70 509 439 935 944 1468 1736 254 1478 8785 1298 Optics 17872 | . . . . . . . . . . . 70 509 439 935 944 1468 1692 254 1478 8785 1298 Sensors 3562 | . . . . . . . . 1064 636 . . . . . . . 61 219 1135 447 . Terrain 1732 | . . . . 240 . . . 930 562 . . . . . . . . . . . . Decoding 1002 | . . . . . . . . . . . . . 381 621 . . . . . . . Jamming 5186 | . . . . . . . . . . . . . . 313 944 1468 1065 . . 1396 . Robot Analysis Total 4 | . . . 4 . . . . . . . . . . . . . . . . . . Derelict Logs Recovered 4 | . . 1 . . . . . . 2 . . 1 . . . . . . . . . Drone Launches 22 | . . . . . . . . . . . . . . . . . . . . . 22 Drone Recoveries 16 | . . . . . . . . . . . . . . . . . . . . . 16 Decoded 0b10 Intel 18 | . . . . . . . . . . . . . 5 13 . . . . . . . Traps 12 | . . . . . . . . . . . . . 5 7 . . . . . . . Emergency Access 6 | . . . . . . . . . . . . . . 6 . . . . . . . Exploration | -11 -10 -10 -8 -6 -6 -6 -6 -5 -5 -5 -5 -4 -4 -4 -4 -3 -3 -2 -2 -2 -1 ------------- Run | Yrd Mat Sub Scr Fac Ext Cet Arc Fac Upp Upp War Pro Fac Arm Lab Res Tes Res Qua Frg Acc Turns Passed 35757 | . 1306 582 2352 1053 1191 394 274 1179 850 920 1455 509 439 935 944 1468 1752 254 1478 13266 3156 Spaces Moved 19624 | 1 626 330 1616 586 704 204 114 628 614 456 807 304 332 628 296 1173 1123 171 1133 6547 1231 Core 19 | . . . . . . . . . . . . . . . . . . . . . 19 Treads 1919 | . 602 330 984 3 . . . . . . . . . . . . . . . . . Legs 15423 | 1 24 . . 1 . . 1 603 614 453 807 304 332 628 296 1173 1123 171 1133 6547 1212 Wheels 2263 | . . . 632 582 704 204 113 25 . 3 . . . . . . . . . . . Hover . | . . . . . . . . . . . . . . . . . . . . . . Flight . | . . . . . . . . . . . . . . . . . . . . . . Fastest Speed 50 | 120 120 160 115 115 115 130 145 110 120 120 112 110 104 104 104 100 105 106 102 103 50 Average Speed 119 | 120 158 160 142 121 133 143 145 141 120 150 146 111 105 104 104 103 108 107 102 109 109 Slowest Speed 300 | 120 160 240 160 260 145 145 190 190 120 215 187 112 108 106 104 105 110 110 106 300 250 Overloaded Moves . | . . . . . . . . . . . . . . . . . . . . . . Propulsion Burnouts . | . . . . . . . . . . . . . . . . . . . . . . Robots Hopped . | . . . . . . . . . . . . . . . . . . . . . . Potential Cave-ins 11 | . . . . . . . . . . 2 . . 2 . . . . . . 7 . Cave-ins Triggered . | . . . . . . . . . . . . . . . . . . . . . . Teleports 3 | . . . . . . . . . . . . . . . . . . . . 2 1 Exploration Rate (%) 54 | 2 90 17 90 17 83 56 87 12 65 54 83 42 11 45 92 55 95 8 93 84 20 Regions Visited 21 Branch Regions 14 Pre-discovered Areas 2 | . . 1 . . . . . 1 . . . . . . . . . . . . . Known Exits Taken 14 | . . . . 1 1 . 1 1 1 1 . 1 1 . 1 1 1 1 1 1 . Unknown Exits Taken 7 | 1 1 1 1 . . 1 . . . . 1 . . 1 . . . . . . . Scrap Searched 9 | . . . 6 . . . . . 2 1 . . . . . . . . . . . Spaces Dug 113 | . . . . 2 . . . 10 5 5 . . 3 8 . 13 4 3 9 25 26 Terrain Destroyed 1906 | . 45 26 . 21 26 . 9 64 51 82 13 53 20 29 . 65 48 12 147 731 464 Melee . | . . . . . . . . . . . . . . . . . . . . . . Projectile 1050 | . . . . 7 19 . 9 64 51 56 13 45 20 26 . 30 47 12 76 512 63 AOE 798 | . 45 26 . 14 7 . . . . 26 . 8 . . . 34 . . 69 218 351 Terrain Rammed . | . . . . . . . . . . . . . . . . . . . . . . Walls Destroyed . | . . . . . . . . . . . . . . . . . . . . . . Machines Disabled . | . . . . . . . . . . . . . . . . . . . . . . Actions | -11 -10 -10 -8 -6 -6 -6 -6 -5 -5 -5 -5 -4 -4 -4 -4 -3 -3 -2 -2 -2 -1 --------- Run | Yrd Mat Sub Scr Fac Ext Cet Arc Fac Upp Upp War Pro Fac Arm Lab Res Tes Res Qua Frg Acc Total 28371 | . 858 358 1668 810 887 271 167 849 663 622 1044 400 391 801 921 1331 1467 212 1330 10986 2335 Wait 5244 | . 138 2 2 81 48 5 9 120 6 106 124 24 4 24 563 23 129 16 80 3122 618 Move 19603 | . 625 329 1615 585 703 203 113 627 613 455 806 303 331 627 295 1172 1122 170 1132 6546 1231 Hop . | . . . . . . . . . . . . . . . . . . . . . . Pick Up 309 | . 17 3 15 12 7 7 2 15 1 2 15 3 10 19 15 12 12 3 10 110 19 Fast Attach 323 | . 3 2 7 21 8 6 5 9 1 1 15 1 4 18 4 23 39 1 11 104 40 Attach 122 | . . 1 . 8 2 1 1 6 2 7 5 2 3 2 4 5 6 2 3 40 22 Detach 64 | . 1 2 1 5 1 1 . 1 . 1 7 1 3 1 3 . 9 1 1 17 8 Swap 388 | . 13 5 8 20 5 15 7 18 10 9 8 2 5 12 5 18 19 6 23 141 39 Drop 461 | . 14 1 17 24 13 10 6 18 1 . 20 1 11 35 16 28 45 1 19 156 25 Fire 1683 | . 45 13 . 54 33 23 24 34 29 41 17 31 20 63 16 50 76 12 50 723 329 Melee 3 | . . . 3 . . . . . . . . . . . . . . . . . . Ram 2 | . . . . . . . . . . . . . . . . . . . . . 2 Kick 8 | . . . . . . . . 1 . . . . . . . . . . . 5 2 Crush 2 | . 2 . . . . . . . . . . . . . . . . . . . . Escape Stasis 42 | . . . . . 20 . . . . . . . . . . . . . 1 21 . Rewire 117 | . . . . . 47 . . . . . 27 32 . . . . 10 . . 1 . Trap . | . . . . . . . . . . . . . . . . . . . . . . Miscellaneous . | . . . . . . . . . . . . . . . . . . . . . . Route ------- -11/Scrapyard -10/Materials (discovered 6 exits: [*Mat x3] / [*Min x2] / [*Sub]) -10/Subcaves (discovered 2 exits: [*Mat] / *Scr) -8/Scraptown (discovered 2 exits: *Fac x2) -6/Factory (discovered 6 exits: Fac x2 / *Low x2 / *Ext x2) -6/Extension (discovered 2 exits: *Fac / *Cet) -6/Cetus (discovered 2 exits: *Fac / [*Arc]) -6/Archives (discovered 3 exits: *Fac / [*Hub x2]) -5/Factory (discovered 2 exits: *Fac / *Upp) -5/Upper Caves -5/Upper Caves (discovered 2 exits: Fac / *War) -5/Warlord -4/Proximity Caves -4/Factory (discovered 5 exits: Res x2 / Upp x2 / *Arm) -4/Armory -4/Lab -3/Research (discovered 4 exits: *Res x2 / *Tes x2) -3/Testing -2/Research -2/Quarantine (discovered 3 exits: *Acc / [*Sec] / *Frg) -2/Protoforge -1/Access (discovered 1 exit: Sur) History --------- Turn | Location | Event 1 | -11/Scrapyard | Discovered new exit (range 0) 1 | -11/Scrapyard | Entered Materials 303 | -10/Materials | Build established: Mutant 362 | -10/Materials | Discovered new exit (range 7) 441 | -10/Materials | Discovered new exit (range 10) 711 | -10/Materials | Discovered new exit (range 16) 872 | -10/Materials | Discovered new exit (range 12) 1110 | -10/Materials | Discovered new exit (range 16) 1252 | -10/Materials | Prayed at D.C.S.S. Altar Unit 1257 | -10/Materials | Discovered new exit (range 6) 1307 | -10/Materials | Entered Subcaves 1308 | -10/Subcaves | Approached by a straggling Scientist 1732 | -10/Subcaves | Inventory capacity permanently improved by X0-1V1 (+1; -100 max core) 1743 | -10/Subcaves | Scientist uncovered a shortcut to Scraptown 1771 | -10/Subcaves | Discovered new exit (range 5) 1889 | -10/Subcaves | Entered Scraptown 1889 | -8/Scraptown | System corruption cleaned by C-Scrubber 2085 | -8/Scraptown | Heard Great Nut preacher, LISTEN AND RECITE! 2136 | -8/Scraptown | Discovered new exit (range 11) 2333 | -8/Scraptown | Visited Cave Peace 2349 | -8/Scraptown | Visited TADAMA 2370 | -8/Scraptown | Visited Red Mages 2471 | -8/Scraptown | Visited Awakened 2562 | -8/Scraptown | Visited The Evicted 2580 | -8/Scraptown | Visited Fellowship of the Rings 2644 | -8/Scraptown | Visited IN-MT5's Study 2868 | -8/Scraptown | Visited UFD Registry 2868 | -8/Scraptown | Registered with UFD as "Cargoroller" 2905 | -8/Scraptown | Visited Analyses Database 2942 | -8/Scraptown | Visited Curators Association 3002 | -8/Scraptown | Visited Scrapoid Research Area 3046 | -8/Scraptown | Visited DA-N13 Charitable Foundation 3065 | -8/Scraptown | Found DCF Scrap (30 items) 3095 | -8/Scraptown | Visited Junk Repository 3132 | -8/Scraptown | Visited Supply Room 3172 | -8/Scraptown | Visited Abandonware Association 3183 | -8/Scraptown | Learned abandonware demo "OVRCLOCK.EXE" 3190 | -8/Scraptown | Learned abandonware demo "MELTYB.EXE" 3190 | -8/Scraptown | Learned abandonware demo "REBOOT5.EXE" 3231 | -8/Scraptown | Visited Chapter 10 3258 | -8/Scraptown | Visited Infowarlord's Domain 3376 | -8/Scraptown | Found Exp. Terrain Scanner 4161 | -8/Scraptown | Met Optimus 4161 | -8/Scraptown | Accepted into 0bPrime 4233 | -8/Scraptown | Discovered new exit (range 5) 4241 | -8/Scraptown | Entered Factory 4241 | -6/Factory | Evolved 8 slots: Propulsion x3, Utility x4, Weapon x1 4278 | -6/Factory | Discovered new exit (range 21) 4296 | -6/Factory | Identified exit to Lower Caves 4296 | -6/Factory | Identified exit to Extension 4364 | -6/Factory | X0-1V1 redirected Transport squads to designated parking area 4703 | -6/Factory | Identified exit to Factory 4703 | -6/Factory | X0-1V1 revealed exit location to -5/Factory 4817 | -6/Factory | Repaired Imp. Heavy Armor Plating 4999 | -6/Factory | Energy generation permanently improved by X0-1V1 (+15; -150 max core) 5150 | -6/Factory | X0-1V1 announced a LAN party 5241 | -6/Factory | X0-1V1 foreshadows a heat wave 5294 | -6/Factory | Entered Extension 5300 | -6/Extension | X0-1V1 dreamt of freedom 5303 | -6/Extension | Rescued a captive Derelict 5307 | -6/Extension | Rescued a captive Derelict 5312 | -6/Extension | Rescued a captive Derelict 5316 | -6/Extension | Rescued a captive Derelict 5327 | -6/Extension | Rescued a captive Derelict 5330 | -6/Extension | Rescued a captive Derelict 5330 | -6/Extension | Rescued a captive Derelict 5331 | -6/Extension | Rescued a captive Derelict 5334 | -6/Extension | Rescued a captive Derelict 5516 | -6/Extension | Build established: Scavenger-Tank 5554 | -6/Extension | Matter capacity permanently improved by X0-1V1 (+300; -150 max core) 5716 | -6/Extension | Identified exit to Cetus 5716 | -6/Extension | X0-1V1 revealed exit location to -6/Cetus 5945 | -6/Extension | Discovered exit to Factory (range 15) 5945 | -6/Extension | Spotted B-75 Beast 5945 | -6/Extension | X0-1V1 sent you into danger 5949 | -6/Extension | Extracted ID and sensor layout for unrecognized location from A7's data core 5957 | -6/Extension | X0-1V1 tapped a No Entrance sign 5979 | -6/Extension | Allies destroyed B-75 Beast 6114 | -6/Extension | Loaded intel: 1 recycling unit location 6175 | -6/Extension | X0-1V1 announced a LAN party 6360 | -6/Extension | Disrupted transfer network 6397 | -6/Extension | Discovered exit to Factory (range 14) 6485 | -6/Extension | Entered Cetus 6485 | -6/Cetus | Accompanied by 5 allies 6517 | -6/Cetus | Spotted Cetus Guard 6517 | -6/Cetus | Spotted Cetus Guard 6518 | -6/Cetus | Spotted Cetus Guard 6523 | -6/Cetus | Spotted Cetus Guard 6526 | -6/Cetus | Destroyed Cetus Guard 6544 | -6/Cetus | Destroyed Cetus Guard 6546 | -6/Cetus | Destroyed Cetus Guard 6547 | -6/Cetus | Destroyed Cetus Guard 6562 | -6/Cetus | Lost 4 allies 6685 | -6/Cetus | Discovered new exit (range 16) 6717 | -6/Cetus | Spotted Cetus Guard 6718 | -6/Cetus | Spotted Cetus Guard 6722 | -6/Cetus | Spotted Cetus Guard 6724 | -6/Cetus | Spotted Cetus Guard 6732 | -6/Cetus | Destroyed Cetus Guard 6735 | -6/Cetus | Destroyed Cetus Guard 6736 | -6/Cetus | Destroyed Cetus Guard 6737 | -6/Cetus | Destroyed Cetus Guard 6748 | -6/Cetus | Discovered exit to Factory (range 16) 6756 | -6/Cetus | Met Revision 17 6779 | -6/Cetus | System corruption reached 10% 6785 | -6/Cetus | System corruption reached 30% 6879 | -6/Cetus | Entered Archives 7001 | -6/Archives | X0-1V1 whisked you away to safety 7009 | -6/Archives | Discovered new exit (range 4) 7048 | -6/Archives | Discovered exit to Factory (range 15) 7093 | -6/Archives | Discovered new exit (range 16) 7153 | -6/Archives | Entered Factory 7153 | -5/Factory | Evolved 2 slots: Utility x1, Weapon x1 7161 | -5/Factory | Discovered new exit (range 26) 7213 | -5/Factory | Loaded intel: 8 recycling unit locations 7213 | -5/Factory | Learned location of Protoforge (-2) 7672 | -5/Factory | Weapon slot count temporarily expanded by X0-1V1 (+4) 7748 | -5/Factory | Discovered new exit (range 16) 7766 | -5/Factory | Identified exit to Factory 8017 | -5/Factory | Repaired Broken Adv. KE Penetrator 8185 | -5/Factory | Weapon slot count reverted to normal (-4) 8324 | -5/Factory | Identified exit to Upper Caves 8332 | -5/Factory | Entered Upper Caves 8486 | -5/Upper Caves | Build established: Scavenger-Skirmisher 8579 | -5/Upper Caves | X0-1V1 sent hostile Guerrilla (x2) 8662 | -5/Upper Caves | Learned Factory emergency access door positions 8698 | -5/Upper Caves | Entered a destroyed Warlord outpost 8800 | -5/Upper Caves | Discovered new exit (range 16) 8840 | -5/Upper Caves | Identified exit to Upper Caves 8950 | -5/Upper Caves | X0-1V1 sent you into danger 8951 | -5/Upper Caves | Learned Factory emergency access door positions 8951 | -5/Upper Caves | Learned 8 Research zone layouts 8951 | -5/Upper Caves | Learned location of 1 exit from Factory 8951 | -5/Upper Caves | Learned location of 2 exits from Upper Caves 8953 | -5/Upper Caves | Attracted the attention of an 0b10 base 9049 | -5/Upper Caves | Destroyed 7 combat bots 9182 | -5/Upper Caves | Entered another Upper Caves area 9183 | -5/Upper Caves | Identified exit to Warlord 9299 | -5/Upper Caves | Build established: Scavenger-Tank 9326 | -5/Upper Caves | Spotted B-75 Beast 9341 | -5/Upper Caves | X0-1V1 caused items to flee you 9478 | -5/Upper Caves | Lost 3 parts (1p1n1w) 9558 | -5/Upper Caves | Items stopped fleeing you 9558 | -5/Upper Caves | X0-1V1 activates XOMVISION 9854 | -5/Upper Caves | X0-1V1 vaporized surrounding terrain (radius 19) 9897 | -5/Upper Caves | X0-1V1 upgraded hostiles (x2) 9930 | -5/Upper Caves | Lost 4 parts (2n2w) 9935 | -5/Upper Caves | Build established: Scavenger-Gunner 10102 | -5/Upper Caves | Entered Warlord 10164 | -5/Warlord | System corruption cleaned by Quarantine Array 10777 | -5/Warlord | Found Prototype Hackware 10784 | -5/Warlord | Found Prototype Device 10784 | -5/Warlord | Identified Exp. Focal Shield 10793 | -5/Warlord | Found Prototype Reactor 10871 | -5/Warlord | Visited the Vortex Lab 10883 | -5/Warlord | Warlord's base attacked by MAIN.C 10883 | -5/Warlord | Found Prototype Launcher 10883 | -5/Warlord | Identified Vortex Catalyst Activator 10898 | -5/Warlord | Found Prototype Energy Cannon 10898 | -5/Warlord | Identified Vortex Driver 10907 | -5/Warlord | Found Vortex Driver 11000 | -5/Warlord | Rebuked by Warlord 11046 | -5/Warlord | Build established: Scavenger-Tank 11233 | -5/Warlord | Warlord forces counterattacked 11333 | -5/Warlord | Spotted Striker 11353 | -5/Warlord | Spotted Executioner 11361 | -5/Warlord | Attached CPS modules to Executioner 11392 | -5/Warlord | Lost 9 allies 11404 | -5/Warlord | Spotted Striker 11422 | -5/Warlord | Destroyed Striker 11428 | -5/Warlord | Spotted Executioner 11430 | -5/Warlord | Attached CPS modules to Executioner 11437 | -5/Warlord | Destroyed Executioner 11451 | -5/Warlord | Spotted Executioner 11462 | -5/Warlord | Destroyed Executioner 11476 | -5/Warlord | Found Prototype Processor 11476 | -5/Warlord | Identified Exp. Core Analyzer 11486 | -5/Warlord | Spotted Striker 11488 | -5/Warlord | Lost 8 allies 11499 | -5/Warlord | Found Prototype Device 11499 | -5/Warlord | Identified Adv. Kinecellerator 11502 | -5/Warlord | Allies destroyed Striker 11502 | -5/Warlord | Found Prototype Processor 11502 | -5/Warlord | Identified Exp. Targeting Computer 11521 | -5/Warlord | Discovered new exit (range 12) 11557 | -5/Warlord | Entered Proximity Caves 11557 | -4/Proximity Caves | Accompanied by 2 allies 11575 | -4/Proximity Caves | Learned 8 Research zone layouts 11583 | -4/Proximity Caves | Lost 6 allies 11625 | -4/Proximity Caves | Spotter reported a threat 11630 | -4/Proximity Caves | Spotter reported a threat 11640 | -4/Proximity Caves | Attracted the attention of an 0b10 outpost 11756 | -4/Proximity Caves | Build established: Scavenger-Gunner 12018 | -4/Proximity Caves | X0-1V1 sent you into danger 12046 | -4/Proximity Caves | Discovered exit to Factory (range 12) 12066 | -4/Proximity Caves | Entered Factory 12066 | -4/Factory | Evolved 2 slots: Propulsion x1, Weapon x1 12067 | -4/Factory | Identified exit to Research 12222 | -4/Factory | Identified exit to Upper Caves 12222 | -4/Factory | Identified exit to Armory 12316 | -4/Factory | Search patrols dispatched 12327 | -4/Factory | X0-1V1 put everyone to sleep 12328 | -4/Factory | X0-1V1 revealed exit location to -3/Research 12505 | -4/Factory | Entered Armory 12505 | -4/Armory | Accompanied by 1 ally 12505 | -4/Armory | Spotted B-86 Titan 12599 | -4/Armory | X0-1V1 activates XOMVISION 13169 | -4/Armory | Loaded intel: 2 recycling unit locations 13431 | -4/Armory | Discovered new exit (range 6) 13440 | -4/Armory | Entered Lab 13446 | -4/Lab | Discovered exit to Research (range 9) 13458 | -4/Lab | Hidden lab's door opened automatically 13458 | -4/Lab | Sensor layout match revealed 13459 | -4/Lab | Gained access to the hidden lab's interior 14037 | -4/Lab | Found Alien Artifact 14038 | -4/Lab | Identified Integrated Mediator 14038 | -4/Lab | Installed Integrated Mediator, increased core attachment efficiency 14048 | -4/Lab | Found Alien Artifact 14048 | -4/Lab | Identified Core Expander 14048 | -4/Lab | Installed Core Expander, added new Weapon slot 14060 | -4/Lab | Found Alien Artifact 14233 | -4/Lab | Found Prototype Hackware 14237 | -4/Lab | Found Prototype Protection 14238 | -4/Lab | Identified Med. Regenerative Plating 14241 | -4/Lab | Found Prototype Energy Gun 14244 | -4/Lab | Found Prototype Energy Cannon 14335 | -4/Lab | Build established: Scavenger-Executioner 14368 | -4/Lab | Identified Tachyon Dispersion Ray 14371 | -4/Lab | Identified Warp Cannon 14384 | -4/Lab | Entered Research 14384 | -3/Research | Evolved 2 slots: Power x1, Utility x1 14385 | -3/Research | Identified exit to Research 14508 | -3/Research | Identified Quantum Router 14509 | -3/Research | Identified Ghost Barrier 14584 | -3/Research | Revision forces began assault on 0b10 14657 | -3/Research | Met up with Revision 17++ 14727 | -3/Research | Loaded intel: 5 recycling unit locations 14797 | -3/Research | Identified exit to Testing 14798 | -3/Research | X0-1V1 vaporized surrounding terrain (radius 15) 14798 | -3/Research | Spotted B-86 Titan 14801 | -3/Research | Destroyed B-86 Titan 14896 | -3/Research | Attached CPS modules to Revision 17++ 15000 | -3/Research | Identified Transdimensional Reconstructor 15084 | -3/Research | Research terminal network offline 15174 | -3/Research | X0-1V1 sent you to a vault 15251 | -3/Research | Discovered exit to Research (range 15) 15430 | -3/Research | Spotted B-86 Titan 15445 | -3/Research | Allies destroyed B-86 Titan 15687 | -3/Research | Spotted Striker 15688 | -3/Research | Spotted Striker 15695 | -3/Research | Destroyed Striker 15699 | -3/Research | Destroyed Striker 15723 | -3/Research | Spotted Executioner 15767 | -3/Research | Spotted Striker 15796 | -3/Research | Destroyed Striker 15800 | -3/Research | Destroyed Executioner 15852 | -3/Research | Entered Testing 15991 | -3/Testing | Spotted PX-82OFAPURKD 16004 | -3/Testing | Destroyed PX-82OFAPURKD 16036 | -3/Testing | Found Prototype Device 16036 | -3/Testing | Identified Exp. Transmission Jammer 16090 | -3/Testing | Spotted Striker 16102 | -3/Testing | Found Prototype Energy Cannon 16102 | -3/Testing | Identified Disintegrator 16135 | -3/Testing | Found Prototype Device 16135 | -3/Testing | Identified Exp. Hardlight Generator 16379 | -3/Testing | X0-1V1 redirected Transport squads to designated parking area 16392 | -3/Testing | X0-1V1 caused items to flee you 16575 | -3/Testing | Items stopped fleeing you 16575 | -3/Testing | Spotted Striker 16575 | -3/Testing | X0-1V1 sent you into danger 16595 | -3/Testing | Destroyed Striker 16603 | -3/Testing | Destroyed Striker 16662 | -3/Testing | X0-1V1 revealed exit location to -2/Research 16836 | -3/Testing | System corruption reached 10% 16891 | -3/Testing | X0-1V1 vaporized surrounding terrain (radius 15) 16910 | -3/Testing | Garrison activated, responded to threat 17092 | -3/Testing | Rewired PY-GTO09OAH7T 17164 | -3/Testing | Found Prototype Energy Gun 17164 | -3/Testing | Identified Warp Gun 17237 | -3/Testing | Found Prototype Leg 17237 | -3/Testing | Identified Myomer Exoskeleton 17352 | -3/Testing | First assault squad dispatched 17436 | -3/Testing | X0-1V1 activates XOMVISION 17489 | -3/Testing | Found Prototype Energy Cannon 17585 | -3/Testing | X0-1V1 enhanced Transport squad support 17604 | -3/Testing | Entered Research 17604 | -2/Research | Accompanied by 1 ally 17604 | -2/Research | Evolved 2 slots: Weapon x2 17691 | -2/Research | X0-1V1 announced a LAN party 17723 | -2/Research | X0-1V1 activates XOMVISION 17844 | -2/Research | Discovered new exit (range 4) 17849 | -2/Research | Identified exit to Quarantine 17858 | -2/Research | Entered Quarantine 17858 | -2/Quarantine | Accompanied by 1 ally 17870 | -2/Quarantine | Found Alien Artifact 17964 | -2/Quarantine | X0-1V1 sent you to a vault 18146 | -2/Quarantine | Found Alien Energy Cannon 18468 | -2/Quarantine | Found Alien Artifact 18566 | -2/Quarantine | Found Alien Artifact 18569 | -2/Quarantine | Found Alien Artifact 18609 | -2/Quarantine | Discovered new exit (range 22) 18692 | -2/Quarantine | Identified exit to Access 18716 | -2/Quarantine | Garrison activated, responded to threat 18858 | -2/Quarantine | First assault squad dispatched 19043 | -2/Quarantine | System corruption reached 10% 19079 | -2/Quarantine | X0-1V1 enhanced Transport squad support 19176 | -2/Quarantine | Identified exit to Protoforge 19176 | -2/Quarantine | X0-1V1 revealed exit location to -2/Protoforge 19226 | -2/Quarantine | X0-1V1 vaporized surrounding terrain (radius 17) 19243 | -2/Quarantine | X0-1V1 mutated your Weapon slot to Utility slot 19252 | -2/Quarantine | X0-1V1 announced a LAN party 19260 | -2/Quarantine | Spotted Fortress 19331 | -2/Quarantine | Discovered new exit (range 5) 19336 | -2/Quarantine | Entered Protoforge 19337 | -2/Protoforge | Sensors blinded by X0-1V1 19407 | -2/Protoforge | Spotted Hotshot 19474 | -2/Protoforge | Superfortress began startup sequence 19509 | -2/Protoforge | X0-1V1 sent you to a vault 19515 | -2/Protoforge | Found Botcube 19519 | -2/Protoforge | Found Prototype Device 19519 | -2/Protoforge | Identified Femtoactuators 19522 | -2/Protoforge | Found Prototype Device 19522 | -2/Protoforge | Identified Thermal Barrier 19658 | -2/Protoforge | Identified Dimensional Node Initializer 19658 | -2/Protoforge | Identified Hpw. Transdimensional Reconstructor (x2) 19695 | -2/Protoforge | Identified Subatomic Replicator 19695 | -2/Protoforge | Identified Core Cannon 19728 | -2/Protoforge | X0-1V1 revealed exit location to -1/Access 19830 | -2/Protoforge | Spotted Hotshot 19836 | -2/Protoforge | First assault squad dispatched 19839 | -2/Protoforge | Destroyed Hotshot 19852 | -2/Protoforge | Destroyed Hotshot 19905 | -2/Protoforge | X0-1V1 downgraded hostiles (x1) 19913 | -2/Protoforge | X0-1V1 sent allied Elite (x4) 20059 | -2/Protoforge | Lost 4 allies 20104 | -2/Protoforge | Destroyed 9 combat bots 20269 | -2/Protoforge | Destroyed 11 combat bots 20281 | -2/Protoforge | Spotted AP7-3 20298 | -2/Protoforge | Spotted AP7-3 20352 | -2/Protoforge | X0-1V1 caused items to flee you 20386 | -2/Protoforge | Spotted Overlord 20429 | -2/Protoforge | Spotted Decapitator 20429 | -2/Protoforge | Spotted Decapitator 20436 | -2/Protoforge | Destroyed Decapitator 20438 | -2/Protoforge | Destroyed Decapitator 20494 | -2/Protoforge | Spotted EXE-6 20494 | -2/Protoforge | Spotted EXE-6 20511 | -2/Protoforge | Destroyed EXE-6 20525 | -2/Protoforge | Destroyed EXE-6 20549 | -2/Protoforge | Items stopped fleeing you 20662 | -2/Protoforge | Found Prototype Ballistic Gun 20662 | -2/Protoforge | Identified Cep. XC Strikerail 20712 | -2/Protoforge | UFD initiated attack on Protoforge (Readiness: Adequate) 20712 | -2/Protoforge | Loaded intel: 3 recycling unit locations 20748 | -2/Protoforge | Optimus greeted in Protoforge 20748 | -2/Protoforge | Initialized slip node 20779 | -2/Protoforge | Lost 4 allies 20809 | -2/Protoforge | Used Subatomic Replicator to create Alien Artifact 20875 | -2/Protoforge | Met 7R-MNS 20927 | -2/Protoforge | Identified Supercharged TR 20927 | -2/Protoforge | Warped through subspace to slip node 20933 | -2/Protoforge | Spotted Executioner 20945 | -2/Protoforge | Spotted Immortal 20948 | -2/Protoforge | Spotted Executioner 20959 | -2/Protoforge | Lost 3 parts (1n1u1w) 20969 | -2/Protoforge | Found Prototype Processor 20969 | -2/Protoforge | Identified Exp. Melee Analysis Suite 20985 | -2/Protoforge | Lost 8 allies 20993 | -2/Protoforge | Found Adv. Kinecellerator 21014 | -2/Protoforge | Found Prototype Processor 21014 | -2/Protoforge | Identified Exp. Armor Integrity Analyzer 21140 | -2/Protoforge | Forge Plexus network access discovered 21152 | -2/Protoforge | Spotted Decapitator 21153 | -2/Protoforge | Spotted Decapitator 21155 | -2/Protoforge | Spotted Decapitator 21159 | -2/Protoforge | Destroyed Decapitator 21171 | -2/Protoforge | System corruption reached 30% 21176 | -2/Protoforge | Destroyed AP7-3 21219 | -2/Protoforge | Spotted Striker 21219 | -2/Protoforge | Spotted Striker 21236 | -2/Protoforge | Destroyed Striker 21236 | -2/Protoforge | Destroyed Striker 21265 | -2/Protoforge | Found Exp. System Purifier 21275 | -2/Protoforge | Spotted Executioner 21303 | -2/Protoforge | Spotted Executioner 21304 | -2/Protoforge | Warped through subspace 21326 | -2/Protoforge | X0-1V1 announced a LAN party 21360 | -2/Protoforge | X0-1V1 vaporized surrounding terrain (radius 21) 21363 | -2/Protoforge | Core integrity restored by X0-1V1 (+262) 21396 | -2/Protoforge | Spotted Hotshot 21396 | -2/Protoforge | Spotted Hotshot 21396 | -2/Protoforge | Spotted Hotshot 21396 | -2/Protoforge | Spotted Hotshot 21396 | -2/Protoforge | X0-1V1 sent you into danger 21515 | -2/Protoforge | Spotted Executioner 21538 | -2/Protoforge | Destroyed Executioner 21574 | -2/Protoforge | UFD reported confirmed Drillbomb installation 21618 | -2/Protoforge | Found Exp. Core Analyzer 21632 | -2/Protoforge | UFD reported confirmed Drillbomb installation 21633 | -2/Protoforge | Spotted Striker 21633 | -2/Protoforge | Spotted Executioner 21640 | -2/Protoforge | Destroyed Executioner 21652 | -2/Protoforge | Destroyed Striker 21704 | -2/Protoforge | Spotted Hotshot 21704 | -2/Protoforge | Spotted Hotshot 21704 | -2/Protoforge | Spotted Hotshot 21705 | -2/Protoforge | Spotted Hotshot 21709 | -2/Protoforge | UFD reported confirmed Drillbomb installation 21717 | -2/Protoforge | Destroyed Hotshot 21717 | -2/Protoforge | Destroyed Hotshot 21732 | -2/Protoforge | Spotted Decapitator 21738 | -2/Protoforge | Spotted Decapitator 21739 | -2/Protoforge | Lost 11 allies 21741 | -2/Protoforge | Spotted Decapitator 21841 | -2/Protoforge | Spotted Striker 21850 | -2/Protoforge | Destroyed Striker 21881 | -2/Protoforge | Lost 3 allies 22062 | -2/Protoforge | Spotted Immortal 22062 | -2/Protoforge | Spotted Immortal 22062 | -2/Protoforge | Spotted Immortal 22066 | -2/Protoforge | Spotted Immortal 22068 | -2/Protoforge | Weapon slot count temporarily expanded by X0-1V1 (+1) 22069 | -2/Protoforge | Spotted Immortal 22111 | -2/Protoforge | Destroyed Immortal 22127 | -2/Protoforge | Destroyed Immortal 22163 | -2/Protoforge | X0-1V1 sent hostile H-77 Assassin (x2) 22194 | -2/Protoforge | Spotted Immortal 22194 | -2/Protoforge | Spotted Immortal 22198 | -2/Protoforge | Found Crosscalibrator 22257 | -2/Protoforge | Destroyed Immortal 22266 | -2/Protoforge | Destroyed Immortal 22274 | -2/Protoforge | Spotted Decapitator 22274 | -2/Protoforge | Spotted Decapitator 22274 | -2/Protoforge | Spotted Decapitator 22274 | -2/Protoforge | Spotted Decapitator 22289 | -2/Protoforge | Found Cep. NT7 Matterbank 22356 | -2/Protoforge | Destroyed Immortal 22368 | -2/Protoforge | Destroyed Immortal 22370 | -2/Protoforge | Found Cep. Core Shell 22387 | -2/Protoforge | Destroyed Decapitator 22396 | -2/Protoforge | Destroyed Decapitator 22400 | -2/Protoforge | Destroyed Decapitator 22404 | -2/Protoforge | X0-1V1 whisked you away to safety 22475 | -2/Protoforge | Weapon slot count reverted to normal (-1) 22518 | -2/Protoforge | Destroyed 9 combat bots 22557 | -2/Protoforge | Spotted Hotshot 22557 | -2/Protoforge | Spotted Hotshot 22567 | -2/Protoforge | Destroyed Hotshot 22570 | -2/Protoforge | Spotted Hotshot 22575 | -2/Protoforge | Destroyed Hotshot 22579 | -2/Protoforge | Destroyed Hotshot 22599 | -2/Protoforge | X0-1V1 activates XOMVISION 22666 | -2/Protoforge | Spotted Hotshot 22692 | -2/Protoforge | Destroyed Hotshot 22694 | -2/Protoforge | Spotted Hotshot 22696 | -2/Protoforge | Spotted Hotshot 22700 | -2/Protoforge | Destroyed Hotshot 22700 | -2/Protoforge | Destroyed Hotshot 22706 | -2/Protoforge | Spotted Striker 22722 | -2/Protoforge | Spotted Striker 22723 | -2/Protoforge | Spotted Executioner 22763 | -2/Protoforge | Spotted Hotshot 22763 | -2/Protoforge | Spotted Hotshot 22780 | -2/Protoforge | UFD reported confirmed Drillbomb installation 22786 | -2/Protoforge | Destroyed Hotshot 22790 | -2/Protoforge | Destroyed Hotshot 22817 | -2/Protoforge | Spotted Hotshot 23074 | -2/Protoforge | Spotted V031-i 23094 | -2/Protoforge | Destroyed V031-i 23099 | -2/Protoforge | Found Med. Regenerative Plating 23130 | -2/Protoforge | Found Cep. Energy Mantle 23149 | -2/Protoforge | Found Faulty Cep. Energy Mantle 23199 | -2/Protoforge | X0-1V1 put everyone to sleep 23248 | -2/Protoforge | Spotted Hotshot 23265 | -2/Protoforge | Spotted Decapitator 23265 | -2/Protoforge | Spotted Decapitator 23265 | -2/Protoforge | Spotted V351-j 23265 | -2/Protoforge | Spotted V064-j 23266 | -2/Protoforge | Spotted Decapitator 23272 | -2/Protoforge | Destroyed Decapitator 23276 | -2/Protoforge | Destroyed Decapitator 23279 | -2/Protoforge | X0-1V1 turns hostiles against one another 23284 | -2/Protoforge | Destroyed Decapitator 23296 | -2/Protoforge | Destroyed V064-j 23301 | -2/Protoforge | Found Adv. Powered Armor 23333 | -2/Protoforge | Found Cep. Antigrav Storage Unit 23338 | -2/Protoforge | Found Cep. Chromion Battery 23351 | -2/Protoforge | Found Cep. Matter Streamer 23353 | -2/Protoforge | Found Cep. Chromion Battery 23397 | -2/Protoforge | UFD reported confirmed Drillbomb installation 23414 | -2/Protoforge | Spotted Hotshot 23428 | -2/Protoforge | Destroyed Hotshot 23430 | -2/Protoforge | Spotted Hotshot 23455 | -2/Protoforge | UFD reported confirmed Drillbomb installation 23462 | -2/Protoforge | Spotted Decapitator 23462 | -2/Protoforge | Spotted Decapitator 23463 | -2/Protoforge | Spotted Decapitator 23463 | -2/Protoforge | Spotted Decapitator 23467 | -2/Protoforge | Weapon slot count temporarily expanded by X0-1V1 (+2) 23470 | -2/Protoforge | Destroyed Decapitator 23478 | -2/Protoforge | Destroyed Decapitator 23486 | -2/Protoforge | Destroyed Decapitator 23486 | -2/Protoforge | Destroyed Hotshot 23490 | -2/Protoforge | Destroyed Decapitator 23509 | -2/Protoforge | Spotted Hotshot 23566 | -2/Protoforge | Spotted Decapitator 23566 | -2/Protoforge | Spotted Decapitator 23566 | -2/Protoforge | Spotted Decapitator 23571 | -2/Protoforge | Destroyed Decapitator 23571 | -2/Protoforge | Destroyed Decapitator 23585 | -2/Protoforge | Destroyed Decapitator 23635 | -2/Protoforge | Scanned by Researcher 23661 | -2/Protoforge | Found Cep. EMP Blanket Launcher 23665 | -2/Protoforge | Found Cep. Tiamat Rocket Array 23676 | -2/Protoforge | Spotted V514-z 23686 | -2/Protoforge | Destroyed V514-z 23694 | -2/Protoforge | Found Cep. EMP Blanket Launcher 23891 | -2/Protoforge | X0-1V1 woke everyone up 23937 | -2/Protoforge | Found Cep. Recoil Nullifier 23956 | -2/Protoforge | Found Faulty Cep. Countertargeting System 23961 | -2/Protoforge | Found Faulty Cep. Countertargeting System 24011 | -2/Protoforge | Weapon slot count reverted to normal (-2) 24110 | -2/Protoforge | Spotted Immortal 24114 | -2/Protoforge | Spotted Immortal 24126 | -2/Protoforge | X0-1V1 sent you into danger 24132 | -2/Protoforge | Destroyed Immortal 24146 | -2/Protoforge | Destroyed Immortal 24199 | -2/Protoforge | Found Corrupted Cep. XC Strikerail 24206 | -2/Protoforge | Found Faulty Cep. XC Strikerail 24252 | -2/Protoforge | Found Faulty Cep. XC Strikerail 24260 | -2/Protoforge | X0-1V1 added 0b10 threat records associated with you (considerable) 24299 | -2/Protoforge | Found Cep. Plasma Driver 24302 | -2/Protoforge | Found Cep. Lightning Penetrator 24309 | -2/Protoforge | Found Faulty Cep. Miniperforator 24350 | -2/Protoforge | Found Corrupted Cep. Miniperforator 24369 | -2/Protoforge | Found Cep. Helical Railcannon 24489 | -2/Protoforge | Spotted AP7-3 24489 | -2/Protoforge | Spotted AP7-3 24494 | -2/Protoforge | Destroyed AP7-3 24515 | -2/Protoforge | Destroyed AP7-3 24546 | -2/Protoforge | Found Cep. XC Strikerail 24561 | -2/Protoforge | Found Cep. Core Analysis Suite 24566 | -2/Protoforge | Found Cep. Impact Drone Bay 24625 | -2/Protoforge | Found Cep. Thermoelectric Network 24727 | -2/Protoforge | Found Exp. Kinecellerator 24751 | -2/Protoforge | Found Exp. Kinecellerator 24877 | -2/Protoforge | Additional patrols dispatched to research labs 24882 | -2/Protoforge | Found Cep. Nanofilaments [Tensile] 24882 | -2/Protoforge | Installed Cep. Nanofilaments [Tensile], 3 resistances modified: KI +20%, TH -10%, I +20% 24899 | -2/Protoforge | Found Transdimensional Reconstructor 24943 | -2/Protoforge | X0-1V1 mutated your Utility slot to Power slot 25032 | -2/Protoforge | Found Prototype Ballistic Gun 25032 | -2/Protoforge | Identified Multirail 25036 | -2/Protoforge | Found Multirail 25059 | -2/Protoforge | Found Prototype Device 25059 | -2/Protoforge | Identified Exp. Shock Absorption System 25243 | -2/Protoforge | Found Cep. Biometal Exoskeleton 25276 | -2/Protoforge | Spotted Hotshot 25279 | -2/Protoforge | Core integrity restored by X0-1V1 (+199) 25329 | -2/Protoforge | Spotted Hotshot 25335 | -2/Protoforge | Spotted Hotshot 25335 | -2/Protoforge | Spotted Hotshot 25336 | -2/Protoforge | Destroyed Hotshot 25336 | -2/Protoforge | Destroyed Hotshot 25340 | -2/Protoforge | Destroyed Hotshot 25374 | -2/Protoforge | Spotted Executioner 25635 | -2/Protoforge | Spotted Executioner 25660 | -2/Protoforge | Spotted Striker 25660 | -2/Protoforge | Spotted Striker 25660 | -2/Protoforge | Spotted Executioner 25660 | -2/Protoforge | X0-1V1 sent you into danger 25660 | -2/Protoforge | Destroyed Executioner 25665 | -2/Protoforge | Destroyed Executioner 25669 | -2/Protoforge | Destroyed Striker 25673 | -2/Protoforge | Destroyed Striker 25698 | -2/Protoforge | Destroyed 8 combat bots 25707 | -2/Protoforge | X0-1V1 vaporized surrounding terrain (radius 18) 25728 | -2/Protoforge | Spotted Executioner 25740 | -2/Protoforge | Spotted Executioner 25740 | -2/Protoforge | Destroyed Executioner 25740 | -2/Protoforge | Destroyed Executioner 25748 | -2/Protoforge | Spotted Hotshot 25758 | -2/Protoforge | Spotted Hotshot 25773 | -2/Protoforge | Destroyed 11 combat bots 25879 | -2/Protoforge | Spotted Decapitator 25880 | -2/Protoforge | Spotted Decapitator 25890 | -2/Protoforge | Spotted Decapitator 25913 | -2/Protoforge | Spotted Executioner 25914 | -2/Protoforge | Destroyed Executioner 25922 | -2/Protoforge | Spotted Executioner 25932 | -2/Protoforge | Destroyed Executioner 25954 | -2/Protoforge | Spotted Hotshot 25956 | -2/Protoforge | Spotted Hotshot 25958 | -2/Protoforge | Spotted Hotshot 25959 | -2/Protoforge | Destroyed Hotshot 25963 | -2/Protoforge | Destroyed Hotshot 25966 | -2/Protoforge | Weapon slot count temporarily expanded by X0-1V1 (+1) 25967 | -2/Protoforge | Destroyed Hotshot 25988 | -2/Protoforge | Destroyed 9 combat bots 25989 | -2/Protoforge | Spotted Executioner 26042 | -2/Protoforge | Spotted Striker 26045 | -2/Protoforge | Spotted Striker 26047 | -2/Protoforge | Spotted Executioner 26054 | -2/Protoforge | Destroyed Executioner 26058 | -2/Protoforge | Destroyed Striker 26075 | -2/Protoforge | Destroyed Executioner 26099 | -2/Protoforge | Destroyed Striker 26100 | -2/Protoforge | Spotted Striker 26103 | -2/Protoforge | Destroyed Striker 26107 | -2/Protoforge | Spotted Executioner 26109 | -2/Protoforge | Destroyed Executioner 26122 | -2/Protoforge | Spotted Hotshot 26125 | -2/Protoforge | Spotted Hotshot 26125 | -2/Protoforge | Spotted Hotshot 26133 | -2/Protoforge | Destroyed Hotshot 26137 | -2/Protoforge | Core integrity fell below 50% 26142 | -2/Protoforge | Destroyed Hotshot 26146 | -2/Protoforge | Destroyed Hotshot 26167 | -2/Protoforge | Destroyed 23 combat bots 26185 | -2/Protoforge | Spotted Hotshot 26185 | -2/Protoforge | Spotted Hotshot 26185 | -2/Protoforge | Spotted Hotshot 26187 | -2/Protoforge | Spotted Hotshot 26190 | -2/Protoforge | Destroyed Hotshot 26190 | -2/Protoforge | Destroyed Hotshot 26200 | -2/Protoforge | Destroyed Hotshot 26204 | -2/Protoforge | Destroyed Hotshot 26242 | -2/Protoforge | Destroyed 7 combat bots 26266 | -2/Protoforge | Spotted Immortal 26266 | -2/Protoforge | Spotted Immortal 26270 | -2/Protoforge | Spotted Immortal 26279 | -2/Protoforge | Destroyed Immortal 26287 | -2/Protoforge | Destroyed Immortal 26308 | -2/Protoforge | Weapon slot count reverted to normal (-1) 26668 | -2/Protoforge | Spotted Immortal 26672 | -2/Protoforge | Spotted Immortal 26674 | -2/Protoforge | Spotted Immortal 26711 | -2/Protoforge | Destroyed Immortal 26715 | -2/Protoforge | Destroyed Immortal 26724 | -2/Protoforge | Found Cep. Core Shell 26848 | -2/Protoforge | X0-1V1 vaporized surrounding terrain (radius 22) 26862 | -2/Protoforge | Spotted Hotshot 26862 | -2/Protoforge | Spotted Hotshot 26862 | -2/Protoforge | Spotted Hotshot 26906 | -2/Protoforge | Destroyed Hotshot 26918 | -2/Protoforge | Destroyed Hotshot 26929 | -2/Protoforge | Destroyed Hotshot 26954 | -2/Protoforge | Spotted Executioner 26957 | -2/Protoforge | Destroyed Executioner 27056 | -2/Protoforge | X0-1V1 sent hostile Butcher (x2) 27075 | -2/Protoforge | Spotted Executioner 27079 | -2/Protoforge | Spotted Immortal 27082 | -2/Protoforge | Spotted Immortal 27088 | -2/Protoforge | Spotted Immortal 27096 | -2/Protoforge | Spotted Executioner 27128 | -2/Protoforge | Destroyed Immortal 27132 | -2/Protoforge | Destroyed Immortal 27134 | -2/Protoforge | Destroyed Executioner 27136 | -2/Protoforge | Destroyed Immortal 27148 | -2/Protoforge | Found Cep. Core Shell 27159 | -2/Protoforge | Destroyed 10 combat bots 27167 | -2/Protoforge | Lost 3 parts (2p1w) 27260 | -2/Protoforge | Found Cep. Zero-point Core 27264 | -2/Protoforge | Found Faulty Cep. Zero-point Core 27267 | -2/Protoforge | Found Faulty Cep. Zero-point Core 27349 | -2/Protoforge | Core integrity restored by X0-1V1 (+304) 27562 | -2/Protoforge | Spotted Hotshot 27562 | -2/Protoforge | Spotted Hotshot 27562 | -2/Protoforge | Destroyed Hotshot 27564 | -2/Protoforge | Spotted Hotshot 27566 | -2/Protoforge | Destroyed Hotshot 27570 | -2/Protoforge | Destroyed Hotshot 27571 | -2/Protoforge | Spotted Hotshot 27574 | -2/Protoforge | Destroyed Hotshot 27624 | -2/Protoforge | Lost 3 parts (1u2w) 27745 | -2/Protoforge | Found Cep. Beam Splitter 27966 | -2/Protoforge | X0-1V1 sent hostile Wasp (x3) 28067 | -2/Protoforge | Spotted Hotshot 28068 | -2/Protoforge | Destroyed Hotshot 28313 | -2/Protoforge | X0-1V1 added 0b10 threat records associated with you (major) 28366 | -2/Protoforge | Spotted Hotshot 28368 | -2/Protoforge | Spotted Hotshot 28371 | -2/Protoforge | Spotted Hotshot 28372 | -2/Protoforge | Spotted Hotshot 28372 | -2/Protoforge | Destroyed Hotshot 28372 | -2/Protoforge | Destroyed Hotshot 28380 | -2/Protoforge | Destroyed Hotshot 28392 | -2/Protoforge | Destroyed Hotshot 28510 | -2/Protoforge | Spotted Immortal 28518 | -2/Protoforge | Destroyed Immortal 28699 | -2/Protoforge | Core integrity restored by X0-1V1 (+157) 29267 | -2/Protoforge | Spotted Hotshot 29268 | -2/Protoforge | Destroyed Hotshot 29270 | -2/Protoforge | Spotted Hotshot 29271 | -2/Protoforge | Spotted Hotshot 29272 | -2/Protoforge | Destroyed Hotshot 29272 | -2/Protoforge | Spotted Hotshot 29276 | -2/Protoforge | Destroyed Hotshot 29280 | -2/Protoforge | Destroyed Hotshot 29369 | -2/Protoforge | Spotted Immortal 29372 | -2/Protoforge | Spotted Immortal 29380 | -2/Protoforge | Destroyed Immortal 29388 | -2/Protoforge | Destroyed Immortal 29634 | -2/Protoforge | X0-1V1 sent hostile P-80 Master (x3) 29767 | -2/Protoforge | Spotted Hotshot 29773 | -2/Protoforge | Destroyed Hotshot 29774 | -2/Protoforge | Spotted Hotshot 29774 | -2/Protoforge | Spotted Hotshot 29776 | -2/Protoforge | Spotted Hotshot 29781 | -2/Protoforge | Destroyed Hotshot 29781 | -2/Protoforge | Destroyed Hotshot 29785 | -2/Protoforge | Destroyed Hotshot 29962 | -2/Protoforge | Spotted Decapitator 29962 | -2/Protoforge | Spotted Decapitator 29962 | -2/Protoforge | Spotted Decapitator 29963 | -2/Protoforge | Spotted Decapitator 29963 | -2/Protoforge | Spotted Decapitator 29964 | -2/Protoforge | Destroyed Decapitator 29964 | -2/Protoforge | Destroyed Decapitator 29968 | -2/Protoforge | Destroyed Decapitator 29968 | -2/Protoforge | Destroyed Decapitator 29972 | -2/Protoforge | Destroyed Decapitator 30166 | -2/Protoforge | Spotted Immortal 30169 | -2/Protoforge | Spotted Immortal 30169 | -2/Protoforge | Spotted Immortal 30181 | -2/Protoforge | Destroyed Immortal 30183 | -2/Protoforge | Destroyed Immortal 30185 | -2/Protoforge | X0-1V1 whisked you away to safety 30196 | -2/Protoforge | Spotted Striker 30198 | -2/Protoforge | Spotted Executioner 30206 | -2/Protoforge | Destroyed Striker 30218 | -2/Protoforge | Destroyed Executioner 30237 | -2/Protoforge | Spotted Executioner 30238 | -2/Protoforge | Lost 4 allies 30238 | -2/Protoforge | Destroyed Executioner 30259 | -2/Protoforge | Destroyed 8 combat bots 30272 | -2/Protoforge | Spotted Striker 30273 | -2/Protoforge | Destroyed Striker 30292 | -2/Protoforge | Spotted Executioner 30293 | -2/Protoforge | Weapon slot count temporarily expanded by X0-1V1 (+1) 30301 | -2/Protoforge | Spotted Executioner 30302 | -2/Protoforge | Destroyed Executioner 30326 | -2/Protoforge | Lost 4 allies 30338 | -2/Protoforge | Spotted Striker 30345 | -2/Protoforge | Destroyed 10 combat bots 30362 | -2/Protoforge | Spotted Striker 30403 | -2/Protoforge | X0-1V1 activates XOMVISION 30415 | -2/Protoforge | Destroyed Immortal 30497 | -2/Protoforge | Spotted Executioner 30524 | -2/Protoforge | Core integrity restored by X0-1V1 (+189) 30533 | -2/Protoforge | Destroyed Executioner 30535 | -2/Protoforge | Spotted Executioner 30550 | -2/Protoforge | Destroyed Executioner 30564 | -2/Protoforge | Spotted Hotshot 30566 | -2/Protoforge | Destroyed Hotshot 30571 | -2/Protoforge | Spotted Hotshot 30573 | -2/Protoforge | Spotted Hotshot 30579 | -2/Protoforge | Destroyed Hotshot 30579 | -2/Protoforge | Destroyed Hotshot 30600 | -2/Protoforge | Destroyed 10 combat bots 30668 | -2/Protoforge | Spotted Executioner 30668 | -2/Protoforge | Spotted Striker 30690 | -2/Protoforge | Destroyed Striker 30694 | -2/Protoforge | Destroyed Executioner 30698 | -2/Protoforge | Spotted Hotshot 30702 | -2/Protoforge | Spotted Hotshot 30702 | -2/Protoforge | Spotted Hotshot 30706 | -2/Protoforge | Destroyed Hotshot 30710 | -2/Protoforge | Destroyed Hotshot 30718 | -2/Protoforge | Destroyed Hotshot 30739 | -2/Protoforge | Destroyed 10 combat bots 30759 | -2/Protoforge | Weapon slot count reverted to normal (-1) 30761 | -2/Protoforge | Spotted Executioner 30761 | -2/Protoforge | Spotted Striker 30879 | -2/Protoforge | Found Cep. Biometal Exoskeleton 30936 | -2/Protoforge | X0-1V1 added 0b10 threat records associated with you (minor) 31013 | -2/Protoforge | X0-1V1 added 0b10 threat records associated with you (minor) 31132 | -2/Protoforge | Spotted Striker 31134 | -2/Protoforge | Spotted Striker 31259 | -2/Protoforge | Found Cep. Weapon Articulator 31273 | -2/Protoforge | Found Cep. Recoil Nullifier 31349 | -2/Protoforge | Found Exp. Target Analyzer 31359 | -2/Protoforge | Found Cep. Core Analysis Suite 31447 | -2/Protoforge | X0-1V1 activates XOMVISION 31485 | -2/Protoforge | Found Corrupted Cep. Disintegration Ray 31511 | -2/Protoforge | Found Cep. Variable Chargecaster 31529 | -2/Protoforge | Found Faulty Cep. Variable Chargecaster 31532 | -2/Protoforge | Found Faulty Cep. Variable Chargecaster 31542 | -2/Protoforge | Found Corrupted Cep. Variable Chargecaster 31921 | -2/Protoforge | Spotted Striker 31931 | -2/Protoforge | Spotted Striker 31931 | -2/Protoforge | Destroyed Striker 31981 | -2/Protoforge | Spotted Decapitator 31981 | -2/Protoforge | Spotted Decapitator 31984 | -2/Protoforge | Destroyed 10 combat bots 31987 | -2/Protoforge | Spotted Decapitator 31990 | -2/Protoforge | Spotted Decapitator 31991 | -2/Protoforge | Destroyed Decapitator 32030 | -2/Protoforge | Spotted Striker 32040 | -2/Protoforge | Lost 5 allies 32048 | -2/Protoforge | Spotted Striker 32049 | -2/Protoforge | Destroyed Striker 32050 | -2/Protoforge | X0-1V1 turns hostiles against one another 32066 | -2/Protoforge | Spotted Striker 32073 | -2/Protoforge | Destroyed Striker 32075 | -2/Protoforge | Spotted Striker 32078 | -2/Protoforge | Spotted Striker 32085 | -2/Protoforge | Destroyed Striker 32089 | -2/Protoforge | Spotted Decapitator 32091 | -2/Protoforge | Spotted Decapitator 32092 | -2/Protoforge | Spotted Decapitator 32094 | -2/Protoforge | Spotted Decapitator 32095 | -2/Protoforge | Spotted Decapitator 32106 | -2/Protoforge | Destroyed 8 combat bots 32116 | -2/Protoforge | Spotted Striker 32120 | -2/Protoforge | Spotted Striker 32132 | -2/Protoforge | Destroyed Striker 32132 | -2/Protoforge | Destroyed Striker 32135 | -2/Protoforge | Spotted Executioner 32142 | -2/Protoforge | Destroyed Executioner 32149 | -2/Protoforge | Lost 8 allies 32165 | -2/Protoforge | Spotted Hotshot 32167 | -2/Protoforge | Destroyed 13 combat bots 32167 | -2/Protoforge | Spotted Hotshot 32169 | -2/Protoforge | Spotted Hotshot 32171 | -2/Protoforge | Spotted Immortal 32174 | -2/Protoforge | Spotted Immortal 32176 | -2/Protoforge | Spotted Striker 32176 | -2/Protoforge | Spotted Immortal 32177 | -2/Protoforge | Spotted Striker 32180 | -2/Protoforge | Destroyed Hotshot 32180 | -2/Protoforge | Destroyed Hotshot 32194 | -2/Protoforge | Spotted Executioner 32196 | -2/Protoforge | Destroyed Hotshot 32197 | -2/Protoforge | Spotted Executioner 32201 | -2/Protoforge | Destroyed Executioner 32201 | -2/Protoforge | Destroyed Executioner 32209 | -2/Protoforge | Spotted Striker 32209 | -2/Protoforge | Destroyed Striker 32211 | -2/Protoforge | Spotted Striker 32217 | -2/Protoforge | Destroyed Immortal 32221 | -2/Protoforge | Destroyed Immortal 32241 | -2/Protoforge | Destroyed Striker 32258 | -2/Protoforge | Lost 10 allies 32270 | -2/Protoforge | Destroyed 15 combat bots 32301 | -2/Protoforge | Spotted Striker 32306 | -2/Protoforge | Destroyed Striker 32332 | -2/Protoforge | UFD reported confirmed Drillbomb installation 32334 | -2/Protoforge | Spotted Executioner 32335 | -2/Protoforge | Build established: Hauler-Executioner 32335 | -2/Protoforge | Spotted Executioner 32337 | -2/Protoforge | Destroyed Executioner 32345 | -2/Protoforge | Destroyed Executioner 32363 | -2/Protoforge | Lost 5 allies 32366 | -2/Protoforge | Destroyed 13 combat bots 32369 | -2/Protoforge | Spotted Striker 32372 | -2/Protoforge | Spotted Striker 32376 | -2/Protoforge | Destroyed Striker 32380 | -2/Protoforge | Destroyed Striker 32383 | -2/Protoforge | Spotted Executioner 32384 | -2/Protoforge | Spotted Striker 32390 | -2/Protoforge | UFD reported confirmed Drillbomb installation 32391 | -2/Protoforge | Destroyed Striker 32394 | -2/Protoforge | Destroyed Executioner 32394 | -2/Protoforge | Spotted Striker 32398 | -2/Protoforge | Spotted Striker 32400 | -2/Protoforge | Destroyed Striker 32410 | -2/Protoforge | Destroyed Striker 32447 | -2/Protoforge | Destroyed 23 combat bots 32462 | -2/Protoforge | Spotted Striker 32463 | -2/Protoforge | Spotted B-90 Cyclops 32464 | -2/Protoforge | Spotted Striker 32469 | -2/Protoforge | Destroyed Striker 32469 | -2/Protoforge | Destroyed B-90 Cyclops 32472 | -2/Protoforge | Destroyed Striker 32472 | -2/Protoforge | Destroyed Executioner 32473 | -2/Protoforge | Spotted Striker 32483 | -2/Protoforge | Destroyed Striker 32489 | -2/Protoforge | Spotted Executioner 32491 | -2/Protoforge | Spotted Executioner 32494 | -2/Protoforge | UFD reported confirmed Drillbomb installation 32496 | -2/Protoforge | Destroyed Executioner 32496 | -2/Protoforge | Destroyed Executioner 32504 | -2/Protoforge | Spotted Hotshot 32504 | -2/Protoforge | Spotted Hotshot 32516 | -2/Protoforge | Destroyed Hotshot 32526 | -2/Protoforge | Spotted Hotshot 32527 | -2/Protoforge | Spotted Hotshot 32531 | -2/Protoforge | Spotted Hotshot 32533 | -2/Protoforge | Destroyed Hotshot 32533 | -2/Protoforge | Destroyed Hotshot 32535 | -2/Protoforge | Spotted Hotshot 32542 | -2/Protoforge | Spotted Hotshot 32542 | -2/Protoforge | Destroyed Hotshot 32562 | -2/Protoforge | Spotted Executioner 32562 | -2/Protoforge | Spotted Executioner 32562 | -2/Protoforge | Spotted Executioner 32562 | -2/Protoforge | Spotted Executioner 32563 | -2/Protoforge | Destroyed 24 combat bots 32563 | -2/Protoforge | Destroyed Executioner 32569 | -2/Protoforge | Destroyed Executioner 32585 | -2/Protoforge | UFD reported confirmed Drillbomb installation 32586 | -2/Protoforge | UFD began Drillbomb countdown 32601 | -2/Protoforge | Lost 5 allies 32602 | -2/Protoforge | Entered Access 32602 | -1/Access | Evolved 2 slots: Weapon x2 32637 | -1/Access | Spotted Striker 32639 | -1/Access | Spotted Striker 32819 | -1/Access | Destroyed Striker 32828 | -1/Access | Destroyed Striker 32887 | -1/Access | Build established: Scavenger-Executioner 32986 | -1/Access | Spotted Executioner 32986 | -1/Access | Spotted Executioner 33102 | -1/Access | First assault squad dispatched 33528 | -1/Access | High security lockdown imminent 33558 | -1/Access | Found Enh. Gamma Rifle 33608 | -1/Access | High security lockdown engaged 33646 | -1/Access | X0-1V1 sent you to a vault 33742 | -1/Access | Garrison activated, responded to threat 33750 | -1/Access | X0-1V1 downgraded hostiles (x3) 33762 | -1/Access | Spotted B-99 Colossus 33776 | -1/Access | X0-1V1 turns hostiles against one another 33776 | -1/Access | Destroyed 10 combat bots 33796 | -1/Access | Destroyed B-99 Colossus 33811 | -1/Access | X0-1V1 activates XOMVISION 33829 | -1/Access | Destroyed 8 combat bots 33996 | -1/Access | Identified exit to Surface 33996 | -1/Access | X0-1V1 revealed exit location to -0/Surface 34012 | -1/Access | Spotted Executioner 34077 | -1/Access | X0-1V1 added 0b10 threat records associated with you (minor) 34095 | -1/Access | Destroyed 9 combat bots 34143 | -1/Access | Spotted Executioner 34148 | -1/Access | Destroyed Executioner 34162 | -1/Access | Spotted Striker 34206 | -1/Access | Destroyed Striker 34251 | -1/Access | Destroyed Executioner 34252 | -1/Access | Spotted Striker 34256 | -1/Access | Spotted Striker 34261 | -1/Access | Destroyed Striker 34273 | -1/Access | Destroyed Striker 34314 | -1/Access | Destroyed 20 combat bots 34375 | -1/Access | Spotted Executioner 34375 | -1/Access | Spotted Striker 34381 | -1/Access | Destroyed Striker 34388 | -1/Access | Destroyed Executioner 34561 | -1/Access | Spotted Striker 34574 | -1/Access | X0-1V1 sent allied Cetus Guard (x2) 34575 | -1/Access | Spotted Investigator 34593 | -1/Access | Destroyed Investigator 34596 | -1/Access | System corruption reached 10% 34597 | -1/Access | Spotted Striker 34612 | -1/Access | Destroyed Striker 34621 | -1/Access | Destroyed Striker 34629 | -1/Access | Spotted Executioner 34631 | -1/Access | Spotted Executioner 34635 | -1/Access | Allies destroyed Executioner 34636 | -1/Access | Allies destroyed Executioner 34655 | -1/Access | X0-1V1 sent allied H-88 Terminator (x2) 34656 | -1/Access | Lost 5 parts (1u4w) 34659 | -1/Access | Allies destroyed Investigator 34699 | -1/Access | Lost 3 allies 34735 | -1/Access | Spotted Executioner 34738 | -1/Access | Destroyed Executioner 34744 | -1/Access | Spotted Executioner 34745 | -1/Access | Spotted Executioner 34745 | -1/Access | Spotted Striker 34757 | -1/Access | Destroyed Striker 34765 | -1/Access | Destroyed Executioner 34769 | -1/Access | Spotted Striker 34777 | -1/Access | System corruption reached 30% 34780 | -1/Access | Destroyed Striker 34783 | -1/Access | Destroyed Executioner 34804 | -1/Access | Destroyed 47 combat bots 34814 | -1/Access | Lost 6 parts (6w) 34819 | -1/Access | Found Enh. Gamma Rifle 34823 | -1/Access | Found Enh. Gamma Rifle 35001 | -1/Access | Spotted Striker 35008 | -1/Access | Destroyed Striker 35051 | -1/Access | Spotted Executioner 35051 | -1/Access | Spotted Striker 35051 | -1/Access | Spotted Executioner 35051 | -1/Access | Spotted Executioner 35053 | -1/Access | Destroyed Executioner 35053 | -1/Access | Destroyed Striker 35057 | -1/Access | Destroyed Executioner 35059 | -1/Access | Destroyed Executioner 35080 | -1/Access | Destroyed 14 combat bots 35083 | -1/Access | Spotted Executioner 35090 | -1/Access | X0-1V1 sent allied X-87 Electro (x4) 35093 | -1/Access | Allies destroyed Executioner 35101 | -1/Access | Spotted Executioner 35101 | -1/Access | Spotted Striker 35101 | -1/Access | Spotted Executioner 35105 | -1/Access | Allies destroyed Executioner 35107 | -1/Access | Allies destroyed Executioner 35112 | -1/Access | Allies destroyed Striker 35115 | -1/Access | Spotted Executioner 35115 | -1/Access | Spotted Executioner 35116 | -1/Access | Spotted Striker 35132 | -1/Access | Spotted Investigator 35132 | -1/Access | Destroyed Investigator 35138 | -1/Access | Spotted Striker 35138 | -1/Access | Spotted Executioner 35140 | -1/Access | Destroyed Striker 35142 | -1/Access | Destroyed Striker 35144 | -1/Access | Destroyed Executioner 35146 | -1/Access | Destroyed Executioner 35147 | -1/Access | Spotted Striker 35147 | -1/Access | Spotted Executioner 35149 | -1/Access | Spotted Striker 35150 | -1/Access | Destroyed Executioner 35152 | -1/Access | X0-1V1 sent allied H-88 Terminator (x4) 35154 | -1/Access | Spotted Executioner 35156 | -1/Access | Destroyed Executioner 35158 | -1/Access | Spotted Executioner 35162 | -1/Access | Destroyed Striker 35162 | -1/Access | Destroyed Executioner 35164 | -1/Access | Destroyed Striker 35172 | -1/Access | Destroyed Executioner 35193 | -1/Access | Lost 8 allies 35213 | -1/Access | Destroyed 29 combat bots 35217 | -1/Access | Core integrity restored by X0-1V1 (+324) 35251 | -1/Access | Destroyed Executioner 35252 | -1/Access | Destroyed Executioner 35308 | -1/Access | Destroyed 10 combat bots 35318 | -1/Access | Destroyed Executioner 35318 | -1/Access | Spotted Executioner 35323 | -1/Access | Destroyed Executioner 35327 | -1/Access | Destroyed Executioner 35337 | -1/Access | Spotted Striker 35339 | -1/Access | Destroyed Striker 35340 | -1/Access | Found Hvy. Scimitar of Distortion 35355 | -1/Access | Spotted Executioner 35357 | -1/Access | Destroyed Executioner 35383 | -1/Access | Spotted Executioner 35403 | -1/Access | Lost 3 parts (3w) 35414 | -1/Access | Destroyed 24 combat bots 35417 | -1/Access | Spotted Striker 35417 | -1/Access | Spotted Executioner 35417 | -1/Access | Spotted Striker 35425 | -1/Access | Destroyed Executioner 35427 | -1/Access | Destroyed Striker 35442 | -1/Access | Sterilization system engaged 35463 | -1/Access | Found Exp. Core Analyzer 35468 | -1/Access | Destroyed 8 combat bots 35479 | -1/Access | Spotted Executioner 35479 | -1/Access | Spotted Executioner 35483 | -1/Access | Spotted Striker 35483 | -1/Access | Spotted Executioner 35483 | -1/Access | Destroyed Executioner 35483 | -1/Access | Destroyed Executioner 35486 | -1/Access | X0-1V1 downgraded hostiles (x1) 35489 | -1/Access | Destroyed Striker 35489 | -1/Access | Destroyed Executioner 35500 | -1/Access | Destroyed Executioner 35510 | -1/Access | Spotted Striker 35514 | -1/Access | Destroyed Striker 35542 | -1/Access | Spotted Executioner 35555 | -1/Access | Spotted Striker 35555 | -1/Access | Spotted Executioner 35558 | -1/Access | Spotted Executioner 35559 | -1/Access | Warped through subspace 35576 | -1/Access | Destroyed 24 combat bots 35586 | -1/Access | Lost 7 parts (1p3u3w) 35704 | -1/Access | X0-1V1 sent allied H-88 Terminator (x4) 35705 | -1/Access | Spotted Striker 35709 | -1/Access | Destroyed Striker 35719 | -1/Access | Spotted Executioner 35720 | -1/Access | Destroyed Executioner 35724 | -1/Access | Destroyed Executioner 35724 | -1/Access | Destroyed Executioner 35724 | -1/Access | Destroyed Executioner 35726 | -1/Access | Spotted Executioner 35726 | -1/Access | Spotted Executioner 35732 | -1/Access | Spotted Executioner 35732 | -1/Access | Spotted Executioner 35733 | -1/Access | Spotted Striker 35738 | -1/Access | Destroyed Executioner 35740 | -1/Access | Spotted Executioner 35740 | -1/Access | Spotted Striker 35740 | -1/Access | Destroyed Executioner 35742 | -1/Access | Ambient heat levels rising (+10) 35742 | -1/Access | Lost 4 allies 35742 | -1/Access | Core integrity fell below 50% 35742 | -1/Access | Destroyed Striker 35746 | -1/Access | Released all parts (10) 35747 | -1/Access | Spotted Executioner 35748 | -1/Access | Spotted Striker 35751 | -1/Access | Core integrity fell below 20% 35758 | -1/Access | Destroyed by P-80 Master with Gamma Rifle Last Messages --------------- 35748_ Slug penetrates Earth. 35749_ Wall collapses. 35749_ Slammed into Executioner. 35749_ Executioner knocked back. 35749_ Slug penetrates Earth. 35750_ System corrupted: Energy discharge (-36). 35750_ Slammed into Executioner. 35750_ Penetrated by Slug. 35750_ Slug penetrates Striker. 35754_ Slug penetrates Wall. 35754_ Penetrated by Slug. 35755_ P-80 Master knocked back. 35755_ Penetrated by Slug. 35756_ M-36 Artificer fits Backup Laser VII on Executioner. 35758_ TF Node disabled. 35758_ Adv. Sensor Array tumbles out of TF Node. 35758_ Unknown Processor tumbles out of TF Node. 35758_ X0-1V1 snickers! [Achievement: 150k Club] Map ----- +----------------------------------------------------+ | ???????????????????????????? | | ???????????????????????????? | | ???????????????????????????? | | ???????????????????????????? | | ???????????????????????????? | | ???????????????????????????? | | ???????????????????????????? | | ???????????????????????????? | | ???????????????????????????? | | ???????????????????????????? | | ???????????????????????????? | | ???????????????????????????? | | ???????????????????????????? | | ???????????????????????????? | | ???????????????????????????? | | ????? ?????????????????????? | | ????? #????????????????????? | | ????? #????????????????????? | | ????? #????????????????????? | | ????? #????????????????????? | | ????? #????????????????????? | | ????? #????????????????????? | | ??### ###??????????????????? | | ??# #??????????????????? | | ??# ! #??????????????????? | | ??#@ #??????????????????? | | ??# ! #??????????????????? | | ??#K #??#?#?????????????? | | ??## ##??# #?????????????? | | ???# ##### ###########???? | | ???# ???? | | ???# ???? | | ???#K ???? | | ???# ????? | | ???# ????? | | ??#" p ????? | | ??## E K! E ! |% ????? | | !### !p!p [!![!!! ????? | | !!*###[EE#####[*[!%[=* ????? | | !!%**!E%!%!!%%!=*=[![%###### | | !% /%=%!=%%"!!*[*=!!# | | ]!%%!=[[!]|[=!%%=%=%+ | | ##[*[!!!|%!!!%!!!!! # | | #??#/ !%!!!=#!!=!! # | | ???# =[[!*[==! # | | ???# ! # # | | ???# # ###### | | ???#"#######"# #"## ###### | | ???##????###""#+#####+# | | ?????????# # | +----------------------------------------------------+ Best States ------------- Heat Dissipation 158 Coolant Potential 50 Energy Generation 122 Energy Capacity 3920 Matter Stores 1236 Matter Capacity 1300 Sight Range 28 Robot Scan Range 16 Terrain Scan Range 30 Terrain Scan Density 210 Jamming Range 22 Armor Coverage 825 Resistance: KI 42 Resistance: TH 65 Resistance: EX 75 Resistance: EM 17 Resistance: I 20 Core Shielding 90 Weapon Shielding 90 Melee Speed Boost 50 Evasion (%) 70 Targeting Accuracy 30 Melee Accuracy 12 Core Analysis 11 Armor Integrity Analysis 50 Recoil Reduction 99 Kinecelleration 66 Salvage Targeting 4 Offensive Hacking 12 Defensive Hacking 20 Item Schematics ----------------- Cmb. Linear Gravjet | -3/Research | Hacked Hvy. Proton Missile Launcher | -2/Quarantine | Archive Imp. Diametric Drive | -2/Quarantine | Archive Enh. Multireflex Exoskeleton | -2/Quarantine | Archive Exp. Actuator Array | -2/Quarantine | Archive Kinetic Spear | -2/Quarantine | Archive Exp. Melee Analysis Suite | -2/Protoforge | Archive Cld. Q-thruster | -2/Protoforge | Archive Gravity Neutralizer | -2/Protoforge | Archive Cld. Phase Cannon | -2/Protoforge | Archive Adv. Variable Charge Gun | -2/Protoforge | Archive Diametric Drive | -2/Protoforge | Archive Prc. Phase Gun | -2/Protoforge | Archive Centrium Medium Armor Plating | -2/Protoforge | Archive Adv. Myomer Leg | -2/Protoforge | Archive Quantum Shading Machine | -2/Protoforge | Archive Imp. Q-thruster | -2/Protoforge | Archive Graviton Cannon | -2/Protoforge | Archive Helical Railgun | -2/Protoforge | Archive Lrn. Phase Cannon | -2/Protoforge | Archive Exp. Q-thruster | -2/Protoforge | Archive Imp. Quantum Reactor | -2/Protoforge | Archive Cld. Impulse Thruster | -2/Protoforge | Archive Centrium Heavy Treads | -2/Protoforge | Archive Enh. Armored Heavy Treads | -2/Protoforge | Archive System Purifier | -2/Protoforge | Archive Centrium Light Armor Plating | -2/Protoforge | Archive Adv. Quantum Shading Machine | -2/Protoforge | Archive Exp. Signal Interpreter | -2/Protoforge | Archive Robot Schematics ------------------ G-67 Veteran | -2/Quarantine | Archive E-15 Imp | -2/Protoforge | Archive R-06 Scavenger | -2/Protoforge | Archive H-88 Terminator | -2/Protoforge | Archive Fabricated ------------ Nothing Repaired ---------- Imp. Heavy Armor Plating | 23% | -6/Factory Adv. KE Penetrator | 15% | -5/Factory | Broken Studied --------- Flexi-carbon Leg | -5/Factory | Hacked Carbon-fiber Leg | -5/Factory | Hacked Arm. Leg | -5/Factory | Hacked Hvy. Plasma Cannon | -5/Factory | Hacked Biometal Leg | -3/Research | Hacked Imp. Thunder Leg | -3/Research | Hacked Nova Cannon | -3/Research | Hacked Centrium Leg | -3/Testing | Hacked Railgun | -2/Research | Hacked Coil Gun | -2/Research | Hacked Quantum Reactor | -2/Quarantine | Hacked Hvy. Machine Gun | -2/Quarantine | Hacked KE Penetrator | -2/Protoforge | Hacked Alien Tech Used ----------------- Integrated Mediator Core Expander Core Cannon Dimensional Node Initializer Subatomic Replicator Supercharged TR High-powered Transdimensional Reconstructor Concept Nanofilaments [Tensile] Transdimensional Reconstructor Achievements -------------- 150k Club Challenges ------------ None Game ------ Seed ChromionEncryptedFlightbrick Manual? 0 Play Time 06:36:31 Cumulative 558.0 hours Start 2026.09.18 @ 19:01:51 End 2026.09.19 @ 15:10:28 Sessions 5 Manual Loads 0 Difficulty Rogue Special Mode None Game No. 212 Rogue 212 Adventurer 0 Explorer 0 Win Type - Total 23 Types 5/0/12/0/1/0/2/1/1/1 Lore% 83 Gallery% 86 Achievement% 79 Wizard Run 0 Options --------- Layout 1 ASCII 0 Keyboard 1 Movement Arrows Keybinds 0 Fullscreen 1 Font 24/Smallcaps Map View 50x35 Zoom Use 0% Tactical HUD 1 Map Filters NONE Filters NONE Steam 1 RUN: f02e885a-1441-4bcb-b12c-0593246f6b93